{"text_format":"1","workbook":"xlsx","n_sheets":4,"sheets":["القائمة","النسب ","الشغل","تقرير"],"not_rendered":{"charts":0,"images":0,"macros":1,"external_links":0,"defined_names":12,"comments":0,"pivot_tables":0},"unopened":[],"bounds":{"document_bytes":16777216,"sheet_cells":100000,"rows_first":2000,"rows_last":500,"rows_between":2000,"halvings":0,"cell_chars":16384,"cell_head_chars":4096},"cells_cut":0,"cells_raw":0,"read":"whole","date_system":"1900"}

{"sheet":"القائمة","index":0,"n_rows":24,"n_cols":13,"rows_kept":24,"cut":false,"hidden":false,"merged":[[0,3,0,4]]}
["أسماء المقاولين","الكلاستر","الصوبة","العملية",null,{"$f":"+F2-تقرير!I4","v":0},"المقاول","المبلغ"]
["خالد مهدي",2,"A",1,"1حفر وردم 10%0",{"$f":"SUM(H2:H24)","v":66900},{"$f":"IF(+A2=\"\",\"\",+A2)","v":"خالد مهدي"},{"$f":"IF(+A2=\"\",\"\",SUMIF(الشغل!$L$5:$L$2000,$G2,الشغل!$M$5:$M$2000))","v":66900}]
["إيهاب",6,"B",2,"2بناء ومحارة وعزل40%0",null,{"$f":"IF(+A3=\"\",\"\",+A3)","v":"إيهاب"},{"$f":"IF(+A3=\"\",\"\",SUMIF(الشغل!$L$5:$L$2000,$G3,الشغل!$M$5:$M$2000))","v":0}]
[null,13,"C",3,"3عـــــــــــــــــزل35%0",null,"",{"$f":"IF(+A4=\"\",\"\",SUMIF(الشغل!$L$5:$L$2000,$G4,الشغل!$M$5:$M$2000))","v":""},{"$f":"(0.2+0.44+0.68+0.64+0.44+0.52+0.48+0.2+0.32+0.52+0.44+0.28)","v":5.16},1400,{"$f":"+I4*J4","v":7224}]
[null,22,"D",4,"4مواسير صرف ورى5%0",null,"",{"$f":"IF(+A5=\"\",\"\",SUMIF(الشغل!$L$5:$L$2000,$G5,الشغل!$M$5:$M$2000))","v":""}]
[null,32,"E",5,"5سورالخارجى10%0",null,"",{"$f":"IF(+A6=\"\",\"\",SUMIF(الشغل!$L$5:$L$2000,$G6,الشغل!$M$5:$M$2000))","v":""}]
[null,33,"F",null,null,null,"",{"$f":"IF(+A7=\"\",\"\",SUMIF(الشغل!$L$5:$L$2000,$G7,الشغل!$M$5:$M$2000))","v":""},{"$f":"(2+2+8+1+8+4+4)*160","v":4640}]
[null,23,null,null,null,null,"",{"$f":"IF(+A8=\"\",\"\",SUMIF(الشغل!$L$5:$L$2000,$G8,الشغل!$M$5:$M$2000))","v":""}]
[null,34,null,null,null,null,"",{"$f":"IF(+A9=\"\",\"\",SUMIF(الشغل!$L$5:$L$2000,$G9,الشغل!$M$5:$M$2000))","v":""}]
[null,24,null,null,null,null,"",{"$f":"IF(+A10=\"\",\"\",SUMIF(الشغل!$L$5:$L$2000,$G10,الشغل!$M$5:$M$2000))","v":""}]
[null,8,null,null,null,null,"",{"$f":"IF(+A11=\"\",\"\",SUMIF(الشغل!$L$5:$L$2000,$G11,الشغل!$M$5:$M$2000))","v":""},{"$f":"(0.8+0.56+0.08+0.24+0.28+0.44+0.32+0.32+0.16+0.8+0.48+0.4+0.24+0.36+0.32+0.52+1+0.16+0.2+0.28+0.48+0.4+0.24)*1400+12712+21600","v":47024.000000000007},{"$f":"1600*75/100","v":1200},{"$f":"+J11*18","v":21600},9.08,{"$f":"+L11*1400","v":12712}]
[null,88,null,null,null,null,"",{"$f":"IF(+A12=\"\",\"\",SUMIF(الشغل!$L$5:$L$2000,$G12,الشغل!$M$5:$M$2000))","v":""}]
[null,47,null,null,null,null,"",{"$f":"IF(+A13=\"\",\"\",SUMIF(الشغل!$L$5:$L$2000,$G13,الشغل!$M$5:$M$2000))","v":""}]
[null,48,null,null,null,null,"",{"$f":"IF(+A14=\"\",\"\",SUMIF(الشغل!$L$5:$L$2000,$G14,الشغل!$M$5:$M$2000))","v":""}]
[null,63,null,null,null,null,"",{"$f":"IF(+A15=\"\",\"\",SUMIF(الشغل!$L$5:$L$2000,$G15,الشغل!$M$5:$M$2000))","v":""}]
[null,83,null,null,null,null,"",{"$f":"IF(+A16=\"\",\"\",SUMIF(الشغل!$L$5:$L$2000,$G16,الشغل!$M$5:$M$2000))","v":""}]
[null,67,null,null,null,null,"",{"$f":"IF(+A17=\"\",\"\",SUMIF(الشغل!$L$5:$L$2000,$G17,الشغل!$M$5:$M$2000))","v":""}]
[null,87,null,null,null,null,"",{"$f":"IF(+A18=\"\",\"\",SUMIF(الشغل!$L$5:$L$2000,$G18,الشغل!$M$5:$M$2000))","v":""}]
[null,66,null,null,null,null,"",{"$f":"IF(+A19=\"\",\"\",SUMIF(الشغل!$L$5:$L$2000,$G19,الشغل!$M$5:$M$2000))","v":""}]
[null,86,null,null,null,null,{"$f":"IF(+A20=\"\",\"\",+A20)","v":""},{"$f":"IF(+A20=\"\",\"\",SUMIF(الشغل!$L$5:$L$2000,$G20,الشغل!$M$5:$M$2000))","v":""}]
[null,88,null,null,null,null,"",{"$f":"IF(+A21=\"\",\"\",SUMIF(الشغل!$L$5:$L$2000,$G21,الشغل!$M$5:$M$2000))","v":""}]
[null,58,null,null,null,null,"",{"$f":"IF(+A22=\"\",\"\",SUMIF(الشغل!$L$5:$L$2000,$G22,الشغل!$M$5:$M$2000))","v":""}]
[null,56,null,null,null,null,"",{"$f":"IF(+A23=\"\",\"\",SUMIF(الشغل!$L$5:$L$2000,$G23,الشغل!$M$5:$M$2000))","v":""}]
[null,57,null,null,null,null,"",{"$f":"IF(+A24=\"\",\"\",SUMIF(الشغل!$L$5:$L$2000,$G24,الشغل!$M$5:$M$2000))","v":""}]

{"sheet":"النسب ","index":1,"n_rows":24,"n_cols":35,"rows_kept":24,"cut":false,"hidden":false,"merged":[]}
[]
["النسبة المؤية","النسبة العامة","المبلغ","اسم البند","النسبة","العمل","القيمة المستحقة ","النسبة المؤية","النسبة العامة","المبلغ","اسم البند","النسبة","العمل","القيمة المستحقة ","النسبة المؤية","النسبة العامة","المبلغ","اسم البند","النسبة","العمل","القيمة المستحقة ","النسبة المؤية","النسبة العامة","المبلغ","اسم البند","النسبة","العمل","القيمة المستحقة ","النسبة المؤية","النسبة العامة","المبلغ","اسم البند","النسبة","العمل","القيمة المستحقة "]
[0,0,0,0,0,0,0,0,0,0,0,0,0,0,0,0,0,0,0,0,0,0,0,0,0,0,0,0,0,0,0,0,0,0,0]
[0.05,5,4000,"حفروردم 10%",{"$f":"100/10","v":10},{"$f":"+B4/E4","v":0.5},{"$f":"+C4*A4","v":200},0.05,5,16000,"بناء محارة وعزل40%",{"$f":"100/40","v":2.5},{"$f":"+B4/L4","v":2},{"$f":"+J4*A4","v":800},0.05,5,14000,"عزل 35%",{"$f":"100/35","v":2.8571428571428572},{"$f":"+P4/S4","v":1.75},{"$f":"+Q4*O4","v":700},0.05,5,2000,"مواسير صرف ورى5%",{"$f":"100/5","v":20},{"$f":"+W4/Z4","v":0.25},{"$f":"+X4*V4","v":100},0.05,5,4000,"سور10%",{"$f":"100/10","v":10},{"$f":"+AD4/AG4","v":0.5},{"$f":"+AE4*AC4","v":200}]
[0.1,10,{"$f":"+C4","v":4000},{"$f":"+D4","v":"حفروردم 10%"},{"$f":"+E4","v":10},1,400,0.1,10,{"$f":"+J4","v":16000},{"$f":"+K4","v":"بناء محارة وعزل40%"},{"$f":"+L4","v":2.5},{"$f":"+B5/L5","v":4},{"$f":"+J5*A5","v":1600},0.1,10,{"$f":"+Q4","v":14000},{"$f":"+R4","v":"عزل 35%"},{"$f":"+S4","v":2.8571428571428572},3.5,1400,0.1,10,{"$f":"+X4","v":2000},{"$f":"+Y4","v":"مواسير صرف ورى5%"},{"$f":"+Z4","v":20},0.5,200,0.1,10,{"$f":"+AE4","v":4000},{"$f":"+AF4","v":"سور10%"},{"$f":"+AG4","v":10},1,400]
[0.15,15,{"$f":"+C5","v":4000},"حفروردم 10%",10,1.5,600,0.15,15,{"$f":"+J5","v":16000},"بناء محارة وعزل40%",2.5,6,2400,0.15,15,{"$f":"+Q5","v":14000},"عزل 35%",2.8571428571428572,5.25,2100,0.15,15,{"$f":"+X5","v":2000},"مواسير صرف ورى5%",20,0.75,300,0.15,15,{"$f":"+AE5","v":4000},"سور10%",10,1.5,600]
[0.2,20,4000,"حفروردم 10%",10,2,800,0.2,20,16000,"بناء محارة وعزل40%",2.5,8,3200,0.2,20,{"$f":"+Q6","v":14000},"عزل 35%",2.8571428571428572,7,2800,0.2,20,{"$f":"+X6","v":2000},"مواسير صرف ورى5%",20,1,400,0.2,20,{"$f":"+AE6","v":4000},"سور10%",10,2,800]
[0.25,25,4000,"حفروردم 10%",10,2.5,1000,0.25,25,16000,"بناء محارة وعزل40%",2.5,10,4000,0.25,25,{"$f":"+Q7","v":14000},"عزل 35%",2.8571428571428572,8.75,3500,0.25,25,{"$f":"+X7","v":2000},"مواسير صرف ورى5%",20,1.25,500,0.25,25,{"$f":"+AE7","v":4000},"سور10%",10,2.5,1000]
[0.3,30,4000,"حفروردم 10%",10,3,1200,0.3,30,16000,"بناء محارة وعزل40%",2.5,12,4800,0.3,30,{"$f":"+Q8","v":14000},"عزل 35%",2.8571428571428572,10.5,4200,0.3,30,{"$f":"+X8","v":2000},"مواسير صرف ورى5%",20,1.5,600,0.3,30,{"$f":"+AE8","v":4000},"سور10%",10,3,1200]
[0.35,35,4000,"حفروردم 10%",10,3.5,1400,0.35,35,16000,"بناء محارة وعزل40%",2.5,14,5600,0.35,35,{"$f":"+Q9","v":14000},"عزل 35%",2.8571428571428572,12.25,4900,0.35,35,{"$f":"+X9","v":2000},"مواسير صرف ورى5%",20,1.75,700,0.35,35,{"$f":"+AE9","v":4000},"سور10%",10,3.5,1400]
[0.4,40,4000,"حفروردم 10%",10,4,1600,0.4,40,16000,"بناء محارة وعزل40%",2.5,16,6400,0.4,40,{"$f":"+Q10","v":14000},"عزل 35%",2.8571428571428572,14,5600,0.4,40,{"$f":"+X10","v":2000},"مواسير صرف ورى5%",20,2,800,0.4,40,{"$f":"+AE10","v":4000},"سور10%",10,4,1600]
[0.45,45,4000,"حفروردم 10%",10,4.5,1800,0.45,45,16000,"بناء محارة وعزل40%",2.5,18,7200,0.45,45,{"$f":"+Q11","v":14000},"عزل 35%",2.8571428571428572,15.75,6300,0.45,45,{"$f":"+X11","v":2000},"مواسير صرف ورى5%",20,2.25,900,0.45,45,{"$f":"+AE11","v":4000},"سور10%",10,4.5,1800]
[0.5,50,4000,"حفروردم 10%",10,5,2000,0.5,50,16000,"بناء محارة وعزل40%",2.5,20,8000,0.5,50,{"$f":"+Q12","v":14000},"عزل 35%",2.8571428571428572,17.5,7000,0.5,50,{"$f":"+X12","v":2000},"مواسير صرف ورى5%",20,2.5,1000,0.5,50,{"$f":"+AE12","v":4000},"سور10%",10,5,2000]
[0.55000000000000004,55,4000,"حفروردم 10%",10,5.5,2200,0.55000000000000004,55,16000,"بناء محارة وعزل40%",2.5,22,8800,0.55000000000000004,55,{"$f":"+Q13","v":14000},"عزل 35%",2.8571428571428572,19.25,7700.0000000000009,0.55000000000000004,55,{"$f":"+X13","v":2000},"مواسير صرف ورى5%",20,2.75,1100,0.55000000000000004,55,{"$f":"+AE13","v":4000},"سور10%",10,5.5,2200]
[0.6,60,4000,"حفروردم 10%",10,6,2400,0.6,60,16000,"بناء محارة وعزل40%",2.5,24,9600,0.6,60,{"$f":"+Q14","v":14000},"عزل 35%",2.8571428571428572,21,8400,0.6,60,{"$f":"+X14","v":2000},"مواسير صرف ورى5%",20,3,1200,0.6,60,{"$f":"+AE14","v":4000},"سور10%",10,6,2400]
[0.65,65,4000,"حفروردم 10%",10,6.5,2600,0.65,65,16000,"بناء محارة وعزل40%",2.5,26,10400,0.65,65,{"$f":"+Q15","v":14000},"عزل 35%",2.8571428571428572,22.75,9100,0.65,65,{"$f":"+X15","v":2000},"مواسير صرف ورى5%",20,3.25,1300,0.65,65,{"$f":"+AE15","v":4000},"سور10%",10,6.5,2600]
[0.7,70,4000,"حفروردم 10%",10,7,2800,0.7,70,16000,"بناء محارة وعزل40%",2.5,28,11200,0.7,70,{"$f":"+Q16","v":14000},"عزل 35%",2.8571428571428572,24.5,9800,0.7,70,{"$f":"+X16","v":2000},"مواسير صرف ورى5%",20,3.5,1400,0.7,70,{"$f":"+AE16","v":4000},"سور10%",10,7,2800]
[0.75,75,4000,"حفروردم 10%",10,7.5,3000,0.75,75,16000,"بناء محارة وعزل40%",2.5,30,12000,0.75,75,{"$f":"+Q17","v":14000},"عزل 35%",2.8571428571428572,26.25,10500,0.75,75,{"$f":"+X17","v":2000},"مواسير صرف ورى5%",20,3.75,1500,0.75,75,{"$f":"+AE17","v":4000},"سور10%",10,7.5,3000]
[0.8,80,4000,"حفروردم 10%",10,8,3200,0.8,80,16000,"بناء محارة وعزل40%",2.5,32,12800,0.8,80,{"$f":"+Q18","v":14000},"عزل 35%",2.8571428571428572,28,11200,0.8,80,{"$f":"+X18","v":2000},"مواسير صرف ورى5%",20,4,1600,0.8,80,{"$f":"+AE18","v":4000},"سور10%",10,8,3200]
[0.85,85,4000,"حفروردم 10%",10,8.5,3400,0.85,85,16000,"بناء محارة وعزل40%",2.5,34,13600,0.85,85,{"$f":"+Q19","v":14000},"عزل 35%",2.8571428571428572,29.75,11900,0.85,85,{"$f":"+X19","v":2000},"مواسير صرف ورى5%",20,4.25,1700,0.85,85,{"$f":"+AE19","v":4000},"سور10%",10,8.5,3400]
[0.9,90,4000,"حفروردم 10%",10,9,3600,0.9,90,16000,"بناء محارة وعزل40%",2.5,36,14400,0.9,90,{"$f":"+Q20","v":14000},"عزل 35%",2.8571428571428572,31.5,12600,0.9,90,{"$f":"+X20","v":2000},"مواسير صرف ورى5%",20,4.5,1800,0.9,90,{"$f":"+AE20","v":4000},"سور10%",10,9,3600]
[0.95,95,{"$f":"+C21","v":4000},"حفروردم 10%",10,9.5,3800,0.95,95,16000,"بناء محارة وعزل40%",2.5,38,15200,0.95,95,{"$f":"+Q21","v":14000},"عزل 35%",2.8571428571428572,33.25,13300,0.95,95,{"$f":"+X21","v":2000},"مواسير صرف ورى5%",20,4.75,1900,0.95,95,{"$f":"+AE21","v":4000},"سور10%",10,9.5,3800]
[1,100,4000,"حفروردم 10%",10,10,4000,1,100,16000,"بناء محارة وعزل40%",2.5,40,16000,1,100,{"$f":"+Q22","v":14000},"عزل 35%",2.8571428571428572,35,14000,1,100,{"$f":"+X22","v":2000},"مواسير صرف ورى5%",20,5,2000,1,100,{"$f":"+AE22","v":4000},"سور10%",10,10,4000]
[null,null,{"$f":"+C23","v":4000},null,null,null,{"$f":"+G23","v":4000},null,null,{"$f":"+J23","v":16000},null,null,null,{"$f":"+N23","v":16000}]

{"sheet":"الشغل","index":2,"n_rows":500,"n_cols":18,"rows_kept":500,"cut":false,"hidden":false,"merged":[]}
[]
[null,null,null,null,null,null,null,null,null,{"$f":"SUBTOTAL(9,J5:J24)","v":66900},null,null,null,{"$f":"IF(G5<>\"\",IF(G5=القائمة!E2,VLOOKUP($H5,'النسب '!$A$3:$G$23,6,0),\"\"),AND(IF(G5=القائمة!E3,VLOOKUP($H5,'النسب '!$H$3:$N$23,6,0),\"\"),AND(IF(G5=القائمة!E4,VLOOKUP($H5,'النسب '!$O$3:$U$23,6,0),\"\")),AND(IF(G5=القائمة!E4,VLOOKUP($H5,'النسب '!$O$3:$U$23,6,0),\"\")),AND(IF(G5=القائمة!E6,VLOOKUP($H5,'النسب '!$AC$2:$AI$23,6,0),\"\"))))","v":10},null,{"$f":"OR(IF(G5=القائمة!E3,VLOOKUP($H5,'النسب '!$H$3:$N$23,6,0),\"\"),IF(G5=القائمة!E4,VLOOKUP($H5,'النسب '!$O$3:$U$23,6,0),\"\"),IF(G5=القائمة!E4,VLOOKUP($H5,'النسب '!$O$3:$U$23,6,0),\"\"),IF(G5=القائمة!E6,VLOOKUP($H5,'النسب '!$AC$2:$AI$23,6,0),\"\"))","v":{"$error":"#VALUE!"}}]
[null,null,null,null,null,null,null,null,null,null,null,null,null,{"$f":"IF(G5=القائمة!E2,VLOOKUP($H5,'النسب '!$A$3:$G$23,6,0),\"\")","v":10},{"$f":"IF(G5=القائمة!E3,VLOOKUP($H5,'النسب '!$H$3:$N$23,6,0),\"\")","v":""},{"$f":"IF(G5=القائمة!E4,VLOOKUP($H5,'النسب '!$O$3:$U$23,6,0),\"\")","v":""},{"$f":"IF(G5=القائمة!E5,VLOOKUP($H5,'النسب '!$V$3:$AB$23,6,0),\"\")","v":""},{"$f":"IF(G5=القائمة!E6,VLOOKUP($H5,'النسب '!$AC$2:$AI$23,6,0),\"\")","v":""}]
[null,"التاريخ","المقاول","الكلاستر","الصوبة","عدد العمال","العمل","النسبة يدوى","العمل من صفحة النسبة","القيمة المستحقة من صفحة النسبة",null,"المقاول","القيمة المستحقة","جدول 1","جدول 2","جدول 3","جدول 4","جدول 5"]
[null,"2019-08-28","خالد مهدي",56,null,null,"1حفر وردم 10%0",1,{"$f":"IF($H5=\"\",\"\",INDEX(OFFSET(OFFSET(Percent,,5),,7*(MATCH($G5,Work,0)-1)),MATCH($H5,Percent,0),0))","v":10},{"$f":"IF($H5=\"\",\"\",INDEX(OFFSET(OFFSET(Percent,,6),,7*(MATCH($G5,Work,0)-1)),MATCH($H5,Percent,0),0))","v":4000},null,{"$f":"IF(+C5=\"\",\"\",+C5)","v":"خالد مهدي"},{"$f":"IF(+C5=\"\",\"\",+J5)","v":4000},{"$f":"VLOOKUP($H5,'النسب '!$A$3:$G$23,6,0)","v":10},{"$f":"VLOOKUP($H5,'النسب '!$H$3:$N$23,6,0)","v":40},{"$f":"VLOOKUP($H5,'النسب '!$O$3:$U$23,6,0)","v":35},{"$f":"VLOOKUP($H5,'النسب '!$V$3:$AB$23,6,0)","v":5},{"$f":"VLOOKUP($H5,'النسب '!$AC$2:$AI$23,6,0)","v":10}]
[null,"2019-08-28","خالد مهدي",56,null,null,"2بناء ومحارة وعزل40%0",0.75,30,12000,null,{"$f":"IF(+C6=\"\",\"\",+C6)","v":"خالد مهدي"},{"$f":"IF(+C6=\"\",\"\",+J6)","v":12000},{"$f":"IF(G6=القائمة!E5,VLOOKUP($H8,'النسب '!$A$3:$G$23,6,0),\"\")","v":""},{"$f":"IF(G6=القائمة!E6,VLOOKUP($H8,'النسب '!$H$3:$N$23,6,0),\"\")","v":""},{"$f":"IF(G6=القائمة!E7,VLOOKUP($H8,'النسب '!$O$3:$U$23,6,0),\"\")","v":""},{"$f":"IF(G6=القائمة!E8,VLOOKUP($H8,'النسب '!$V$3:$AB$23,6,0),\"\")","v":""},{"$f":"IF(G6=القائمة!E9,VLOOKUP($H8,'النسب '!$AC$2:$AI$23,6,0),\"\")","v":""}]
[null,"2019-08-28","خالد مهدي",56,null,null,"3عـــــــــــــــــزل35%0",0.45,15.75,6300,null,"خالد مهدي",6300]
[null,"2019-08-28","خالد مهدي",57,null,null,"1حفر وردم 10%0",1,10,4000,null,"خالد مهدي",4000]
[null,"2019-08-28","خالد مهدي",57,null,null,"2بناء ومحارة وعزل40%0",0.75,30,12000,null,"خالد مهدي",12000]
[null,"2019-08-28","خالد مهدي",57,null,null,"3عـــــــــــــــــزل35%0",0.45,15.75,6300,null,"خالد مهدي",6300]
[null,"2019-08-28","خالد مهدي",58,null,null,"1حفر وردم 10%0",1,10,4000,null,"خالد مهدي",4000]
[null,"2019-08-28","خالد مهدي",58,null,null,"2بناء ومحارة وعزل40%0",0.75,30,12000,null,"خالد مهدي",12000]
[null,"2019-08-28","خالد مهدي",58,null,null,"3عـــــــــــــــــزل35%0",0.45,15.75,6300,null,"خالد مهدي",6300]
[null,null,null,null,null,null,{"$f":"IFERROR(VLOOKUP(#REF!,القائمة!$D$2:$E$6,2,0),\"\")","v":""},null,"","",null,"",""]
[null,null,null,null,null,null,{"$f":"IFERROR(VLOOKUP(#REF!,القائمة!$D$2:$E$6,2,0),\"\")","v":""},null,"","",null,"",""]
[null,null,null,null,null,null,{"$f":"IFERROR(VLOOKUP(#REF!,القائمة!$D$2:$E$6,2,0),\"\")","v":""},null,"","",null,"",""]
[null,null,null,null,null,null,{"$f":"IFERROR(VLOOKUP(#REF!,القائمة!$D$2:$E$6,2,0),\"\")","v":""},null,"","",null,"",""]
[null,null,null,null,null,null,{"$f":"IFERROR(VLOOKUP(#REF!,القائمة!$D$2:$E$6,2,0),\"\")","v":""},null,"","",null,"",""]
[null,null,null,null,null,null,{"$f":"IFERROR(VLOOKUP(#REF!,القائمة!$D$2:$E$6,2,0),\"\")","v":""},null,"","",null,"",""]
[null,null,null,null,null,null,{"$f":"IFERROR(VLOOKUP(#REF!,القائمة!$D$2:$E$6,2,0),\"\")","v":""},null,"","",null,"",""]
[null,null,null,null,null,null,{"$f":"IFERROR(VLOOKUP(#REF!,القائمة!$D$2:$E$6,2,0),\"\")","v":""},null,"","",null,"",""]
[null,null,null,null,null,null,{"$f":"IFERROR(VLOOKUP(#REF!,القائمة!$D$2:$E$6,2,0),\"\")","v":""},null,"","",null,"",""]
[null,null,null,null,null,null,{"$f":"IFERROR(VLOOKUP(#REF!,القائمة!$D$2:$E$6,2,0),\"\")","v":""},null,"","",null,"",""]
[null,null,null,null,null,null,{"$f":"IFERROR(VLOOKUP(#REF!,القائمة!$D$2:$E$6,2,0),\"\")","v":""},null,"","",null,"",""]
[null,null,null,null,null,null,{"$f":"IFERROR(VLOOKUP(#REF!,القائمة!$D$2:$E$6,2,0),\"\")","v":""},null,"","",null,"",""]
[null,null,null,null,null,null,{"$f":"IFERROR(VLOOKUP(#REF!,القائمة!$D$2:$E$6,2,0),\"\")","v":""},null,"","",null,"",""]
[null,null,null,null,null,null,{"$f":"IFERROR(VLOOKUP(#REF!,القائمة!$D$2:$E$6,2,0),\"\")","v":""},null,"","",null,"",""]
[null,null,null,null,null,null,{"$f":"IFERROR(VLOOKUP(#REF!,القائمة!$D$2:$E$6,2,0),\"\")","v":""},null,"","",null,"",""]
[null,null,null,null,null,null,{"$f":"IFERROR(VLOOKUP(#REF!,القائمة!$D$2:$E$6,2,0),\"\")","v":""},null,"","",null,"",""]
[null,null,null,null,null,null,{"$f":"IFERROR(VLOOKUP(#REF!,القائمة!$D$2:$E$6,2,0),\"\")","v":""},null,"","",null,"",""]
[null,null,null,null,null,null,{"$f":"IFERROR(VLOOKUP(#REF!,القائمة!$D$2:$E$6,2,0),\"\")","v":""},null,"","",null,"",""]
[null,null,null,null,null,null,{"$f":"IFERROR(VLOOKUP(#REF!,القائمة!$D$2:$E$6,2,0),\"\")","v":""},null,"","",null,"",""]
[null,null,null,null,null,null,{"$f":"IFERROR(VLOOKUP(#REF!,القائمة!$D$2:$E$6,2,0),\"\")","v":""},null,"","",null,"",""]
[null,null,null,null,null,null,{"$f":"IFERROR(VLOOKUP(#REF!,القائمة!$D$2:$E$6,2,0),\"\")","v":""},null,"","",null,"",""]
[null,null,null,null,null,null,{"$f":"IFERROR(VLOOKUP(#REF!,القائمة!$D$2:$E$6,2,0),\"\")","v":""},null,"","",null,"",""]
[null,null,null,null,null,null,{"$f":"IFERROR(VLOOKUP(#REF!,القائمة!$D$2:$E$6,2,0),\"\")","v":""},null,"","",null,"",""]
[null,null,null,null,null,null,{"$f":"IFERROR(VLOOKUP(#REF!,القائمة!$D$2:$E$6,2,0),\"\")","v":""},null,"","",null,"",""]
[null,null,null,null,null,null,{"$f":"IFERROR(VLOOKUP(#REF!,القائمة!$D$2:$E$6,2,0),\"\")","v":""},null,"","",null,"",""]
[null,null,null,null,null,null,{"$f":"IFERROR(VLOOKUP(#REF!,القائمة!$D$2:$E$6,2,0),\"\")","v":""},null,"","",null,"",""]
[null,null,null,null,null,null,{"$f":"IFERROR(VLOOKUP(#REF!,القائمة!$D$2:$E$6,2,0),\"\")","v":""},null,"","",null,"",""]
[null,null,null,null,null,null,{"$f":"IFERROR(VLOOKUP(#REF!,القائمة!$D$2:$E$6,2,0),\"\")","v":""},null,"","",null,"",""]
[null,null,null,null,null,null,{"$f":"IFERROR(VLOOKUP(#REF!,القائمة!$D$2:$E$6,2,0),\"\")","v":""},null,"","",null,"",""]
[null,null,null,null,null,null,{"$f":"IFERROR(VLOOKUP(#REF!,القائمة!$D$2:$E$6,2,0),\"\")","v":""},null,"","",null,"",""]
[null,null,null,null,null,null,{"$f":"IFERROR(VLOOKUP(#REF!,القائمة!$D$2:$E$6,2,0),\"\")","v":""},null,"","",null,"",""]
[null,null,null,null,null,null,{"$f":"IFERROR(VLOOKUP(#REF!,القائمة!$D$2:$E$6,2,0),\"\")","v":""},null,"","",null,"",""]
[null,null,null,null,null,null,{"$f":"IFERROR(VLOOKUP(#REF!,القائمة!$D$2:$E$6,2,0),\"\")","v":""},null,"","",null,"",""]
[null,null,null,null,null,null,{"$f":"IFERROR(VLOOKUP(#REF!,القائمة!$D$2:$E$6,2,0),\"\")","v":""},null,"","",null,"",""]
[null,null,null,null,null,null,{"$f":"IFERROR(VLOOKUP(#REF!,القائمة!$D$2:$E$6,2,0),\"\")","v":""},null,"","",null,"",""]
[null,null,null,null,null,null,{"$f":"IFERROR(VLOOKUP(#REF!,القائمة!$D$2:$E$6,2,0),\"\")","v":""},null,"","",null,"",""]
[null,null,null,null,null,null,{"$f":"IFERROR(VLOOKUP(#REF!,القائمة!$D$2:$E$6,2,0),\"\")","v":""},null,"","",null,"",""]
[null,null,null,null,null,null,{"$f":"IFERROR(VLOOKUP(#REF!,القائمة!$D$2:$E$6,2,0),\"\")","v":""},null,"","",null,"",""]
[null,null,null,null,null,null,{"$f":"IFERROR(VLOOKUP(#REF!,القائمة!$D$2:$E$6,2,0),\"\")","v":""},null,"","",null,"",""]
[null,null,null,null,null,null,{"$f":"IFERROR(VLOOKUP(#REF!,القائمة!$D$2:$E$6,2,0),\"\")","v":""},null,"","",null,"",""]
[null,null,null,null,null,null,{"$f":"IFERROR(VLOOKUP(#REF!,القائمة!$D$2:$E$6,2,0),\"\")","v":""},null,"","",null,"",""]
[null,null,null,null,null,null,{"$f":"IFERROR(VLOOKUP(#REF!,القائمة!$D$2:$E$6,2,0),\"\")","v":""},null,"","",null,"",""]
[null,null,null,null,null,null,{"$f":"IFERROR(VLOOKUP(#REF!,القائمة!$D$2:$E$6,2,0),\"\")","v":""},null,"","",null,"",""]
[null,null,null,null,null,null,{"$f":"IFERROR(VLOOKUP(#REF!,القائمة!$D$2:$E$6,2,0),\"\")","v":""},null,"","",null,"",""]
[null,null,null,null,null,null,{"$f":"IFERROR(VLOOKUP(#REF!,القائمة!$D$2:$E$6,2,0),\"\")","v":""},null,"","",null,"",""]
[null,null,null,null,null,null,{"$f":"IFERROR(VLOOKUP(#REF!,القائمة!$D$2:$E$6,2,0),\"\")","v":""},null,"","",null,"",""]
[null,null,null,null,null,null,{"$f":"IFERROR(VLOOKUP(#REF!,القائمة!$D$2:$E$6,2,0),\"\")","v":""},null,"","",null,"",""]
[null,null,null,null,null,null,{"$f":"IFERROR(VLOOKUP(#REF!,القائمة!$D$2:$E$6,2,0),\"\")","v":""},null,"","",null,"",""]
[null,null,null,null,null,null,{"$f":"IFERROR(VLOOKUP(#REF!,القائمة!$D$2:$E$6,2,0),\"\")","v":""},null,"","",null,"",""]
[null,null,null,null,null,null,{"$f":"IFERROR(VLOOKUP(#REF!,القائمة!$D$2:$E$6,2,0),\"\")","v":""},null,"","",null,"",""]
[null,null,null,null,null,null,{"$f":"IFERROR(VLOOKUP(#REF!,القائمة!$D$2:$E$6,2,0),\"\")","v":""},null,"","",null,"","",null,null,{"$f":"15000*60/100","v":9000}]
[null,null,null,null,null,null,{"$f":"IFERROR(VLOOKUP(#REF!,القائمة!$D$2:$E$6,2,0),\"\")","v":""},null,"","",null,"",""]
[null,null,null,null,null,null,{"$f":"IFERROR(VLOOKUP(#REF!,القائمة!$D$2:$E$6,2,0),\"\")","v":""},null,"","",null,"",""]
[null,null,null,null,null,null,{"$f":"IFERROR(VLOOKUP(#REF!,القائمة!$D$2:$E$6,2,0),\"\")","v":""},null,"","",null,"",""]
[null,null,null,null,null,null,{"$f":"IFERROR(VLOOKUP(#REF!,القائمة!$D$2:$E$6,2,0),\"\")","v":""},null,"","",null,"",""]
[null,null,null,null,null,null,{"$f":"IFERROR(VLOOKUP(#REF!,القائمة!$D$2:$E$6,2,0),\"\")","v":""},null,{"$f":"IF($H69=\"\",\"\",INDEX(OFFSET(OFFSET(Percent,,5),,7*(MATCH($G69,Work,0)-1)),MATCH($H69,Percent,0),0))","v":""},{"$f":"IF($H69=\"\",\"\",INDEX(OFFSET(OFFSET(Percent,,6),,7*(MATCH($G69,Work,0)-1)),MATCH($H69,Percent,0),0))","v":""},null,"",""]
[null,null,null,null,null,null,{"$f":"IFERROR(VLOOKUP(#REF!,القائمة!$D$2:$E$6,2,0),\"\")","v":""},null,"","",null,{"$f":"IF(+C70=\"\",\"\",+C70)","v":""},{"$f":"IF(+C70=\"\",\"\",+J70)","v":""}]
[null,null,null,null,null,null,{"$f":"IFERROR(VLOOKUP(#REF!,القائمة!$D$2:$E$6,2,0),\"\")","v":""},null,"","",null,"",""]
[null,null,null,null,null,null,{"$f":"IFERROR(VLOOKUP(#REF!,القائمة!$D$2:$E$6,2,0),\"\")","v":""},null,"","",null,"",""]
[null,null,null,null,null,null,{"$f":"IFERROR(VLOOKUP(#REF!,القائمة!$D$2:$E$6,2,0),\"\")","v":""},null,"","",null,"",""]
[null,null,null,null,null,null,{"$f":"IFERROR(VLOOKUP(#REF!,القائمة!$D$2:$E$6,2,0),\"\")","v":""},null,"","",null,"",""]
[null,null,null,null,null,null,{"$f":"IFERROR(VLOOKUP(#REF!,القائمة!$D$2:$E$6,2,0),\"\")","v":""},null,"","",null,"",""]
[null,null,null,null,null,null,{"$f":"IFERROR(VLOOKUP(#REF!,القائمة!$D$2:$E$6,2,0),\"\")","v":""},null,"","",null,"",""]
[null,null,null,null,null,null,{"$f":"IFERROR(VLOOKUP(#REF!,القائمة!$D$2:$E$6,2,0),\"\")","v":""},null,"","",null,"",""]
[null,null,null,null,null,null,{"$f":"IFERROR(VLOOKUP(#REF!,القائمة!$D$2:$E$6,2,0),\"\")","v":""},null,"","",null,"",""]
[null,null,null,null,null,null,{"$f":"IFERROR(VLOOKUP(#REF!,القائمة!$D$2:$E$6,2,0),\"\")","v":""},null,"","",null,"",""]
[null,null,null,null,null,null,{"$f":"IFERROR(VLOOKUP(#REF!,القائمة!$D$2:$E$6,2,0),\"\")","v":""},null,"","",null,"",""]
[null,null,null,null,null,null,{"$f":"IFERROR(VLOOKUP(#REF!,القائمة!$D$2:$E$6,2,0),\"\")","v":""},null,"","",null,"",""]
[null,null,null,null,null,null,{"$f":"IFERROR(VLOOKUP(#REF!,القائمة!$D$2:$E$6,2,0),\"\")","v":""},null,"","",null,"",""]
[null,null,null,null,null,null,{"$f":"IFERROR(VLOOKUP(#REF!,القائمة!$D$2:$E$6,2,0),\"\")","v":""},null,"","",null,"",""]
[null,null,null,null,null,null,{"$f":"IFERROR(VLOOKUP(#REF!,القائمة!$D$2:$E$6,2,0),\"\")","v":""},null,"","",null,"",""]
[null,null,null,null,null,null,{"$f":"IFERROR(VLOOKUP(#REF!,القائمة!$D$2:$E$6,2,0),\"\")","v":""},null,"","",null,"",""]
[null,null,null,null,null,null,{"$f":"IFERROR(VLOOKUP(#REF!,القائمة!$D$2:$E$6,2,0),\"\")","v":""},null,"","",null,"",""]
[null,null,null,null,null,null,{"$f":"IFERROR(VLOOKUP(#REF!,القائمة!$D$2:$E$6,2,0),\"\")","v":""},null,"","",null,"",""]
[null,null,null,null,null,null,{"$f":"IFERROR(VLOOKUP(#REF!,القائمة!$D$2:$E$6,2,0),\"\")","v":""},null,"","",null,"",""]
[null,null,null,null,null,null,{"$f":"IFERROR(VLOOKUP(#REF!,القائمة!$D$2:$E$6,2,0),\"\")","v":""},null,"","",null,"",""]
[null,null,null,null,null,null,{"$f":"IFERROR(VLOOKUP(#REF!,القائمة!$D$2:$E$6,2,0),\"\")","v":""},null,"","",null,"",""]
[null,null,null,null,null,null,{"$f":"IFERROR(VLOOKUP(#REF!,القائمة!$D$2:$E$6,2,0),\"\")","v":""},null,"","",null,"",""]
[null,null,null,null,null,null,{"$f":"IFERROR(VLOOKUP(#REF!,القائمة!$D$2:$E$6,2,0),\"\")","v":""},null,"","",null,"",""]
[null,null,null,null,null,null,{"$f":"IFERROR(VLOOKUP(#REF!,القائمة!$D$2:$E$6,2,0),\"\")","v":""},null,"","",null,"",""]
[null,null,null,null,null,null,{"$f":"IFERROR(VLOOKUP(#REF!,القائمة!$D$2:$E$6,2,0),\"\")","v":""},null,"","",null,"",""]
[null,null,null,null,null,null,{"$f":"IFERROR(VLOOKUP(#REF!,القائمة!$D$2:$E$6,2,0),\"\")","v":""},null,"","",null,"",""]
[null,null,null,null,null,null,{"$f":"IFERROR(VLOOKUP(#REF!,القائمة!$D$2:$E$6,2,0),\"\")","v":""},null,"","",null,"",""]
[null,null,null,null,null,null,{"$f":"IFERROR(VLOOKUP(#REF!,القائمة!$D$2:$E$6,2,0),\"\")","v":""},null,"","",null,"",""]
[null,null,null,null,null,null,{"$f":"IFERROR(VLOOKUP(#REF!,القائمة!$D$2:$E$6,2,0),\"\")","v":""},null,"","",null,"",""]
[null,null,null,null,null,null,{"$f":"IFERROR(VLOOKUP(#REF!,القائمة!$D$2:$E$6,2,0),\"\")","v":""},null,"","",null,"",""]
[null,null,null,null,null,null,{"$f":"IFERROR(VLOOKUP(#REF!,القائمة!$D$2:$E$6,2,0),\"\")","v":""},null,"","",null,"",""]
[null,null,null,null,null,null,{"$f":"IFERROR(VLOOKUP(#REF!,القائمة!$D$2:$E$6,2,0),\"\")","v":""},null,"","",null,"",""]
[null,null,null,null,null,null,{"$f":"IFERROR(VLOOKUP(#REF!,القائمة!$D$2:$E$6,2,0),\"\")","v":""},null,"","",null,"",""]
[null,null,null,null,null,null,{"$f":"IFERROR(VLOOKUP(#REF!,القائمة!$D$2:$E$6,2,0),\"\")","v":""},null,"","",null,"",""]
[null,null,null,null,null,null,{"$f":"IFERROR(VLOOKUP(#REF!,القائمة!$D$2:$E$6,2,0),\"\")","v":""},null,"","",null,"",""]
[null,null,null,null,null,null,{"$f":"IFERROR(VLOOKUP(#REF!,القائمة!$D$2:$E$6,2,0),\"\")","v":""},null,"","",null,"",""]
[null,null,null,null,null,null,{"$f":"IFERROR(VLOOKUP(#REF!,القائمة!$D$2:$E$6,2,0),\"\")","v":""},null,"","",null,"",""]
[null,null,null,null,null,null,{"$f":"IFERROR(VLOOKUP(#REF!,القائمة!$D$2:$E$6,2,0),\"\")","v":""},null,"","",null,"",""]
[null,null,null,null,null,null,{"$f":"IFERROR(VLOOKUP(#REF!,القائمة!$D$2:$E$6,2,0),\"\")","v":""},null,"","",null,"",""]
[null,null,null,null,null,null,{"$f":"IFERROR(VLOOKUP(#REF!,القائمة!$D$2:$E$6,2,0),\"\")","v":""},null,"","",null,"",""]
[null,null,null,null,null,null,{"$f":"IFERROR(VLOOKUP(#REF!,القائمة!$D$2:$E$6,2,0),\"\")","v":""},null,"","",null,"",""]
[null,null,null,null,null,null,{"$f":"IFERROR(VLOOKUP(#REF!,القائمة!$D$2:$E$6,2,0),\"\")","v":""},null,"","",null,"",""]
[null,null,null,null,null,null,{"$f":"IFERROR(VLOOKUP(#REF!,القائمة!$D$2:$E$6,2,0),\"\")","v":""},null,"","",null,"",""]
[null,null,null,null,null,null,{"$f":"IFERROR(VLOOKUP(#REF!,القائمة!$D$2:$E$6,2,0),\"\")","v":""},null,"","",null,"",""]
[null,null,null,null,null,null,{"$f":"IFERROR(VLOOKUP(#REF!,القائمة!$D$2:$E$6,2,0),\"\")","v":""},null,"","",null,"",""]
[null,null,null,null,null,null,{"$f":"IFERROR(VLOOKUP(#REF!,القائمة!$D$2:$E$6,2,0),\"\")","v":""},null,"","",null,"",""]
[null,null,null,null,null,null,{"$f":"IFERROR(VLOOKUP(#REF!,القائمة!$D$2:$E$6,2,0),\"\")","v":""},null,"","",null,"",""]
[null,null,null,null,null,null,{"$f":"IFERROR(VLOOKUP(#REF!,القائمة!$D$2:$E$6,2,0),\"\")","v":""},null,"","",null,"",""]
[null,null,null,null,null,null,{"$f":"IFERROR(VLOOKUP(#REF!,القائمة!$D$2:$E$6,2,0),\"\")","v":""},null,"","",null,"",""]
[null,null,null,null,null,null,{"$f":"IFERROR(VLOOKUP(#REF!,القائمة!$D$2:$E$6,2,0),\"\")","v":""},null,"","",null,"",""]
[null,null,null,null,null,null,{"$f":"IFERROR(VLOOKUP(#REF!,القائمة!$D$2:$E$6,2,0),\"\")","v":""},null,"","",null,"",""]
[null,null,null,null,null,null,{"$f":"IFERROR(VLOOKUP(#REF!,القائمة!$D$2:$E$6,2,0),\"\")","v":""},null,"","",null,"",""]
[null,null,null,null,null,null,{"$f":"IFERROR(VLOOKUP(#REF!,القائمة!$D$2:$E$6,2,0),\"\")","v":""},null,"","",null,"",""]
[null,null,null,null,null,null,{"$f":"IFERROR(VLOOKUP(#REF!,القائمة!$D$2:$E$6,2,0),\"\")","v":""},null,"","",null,"",""]
[null,null,null,null,null,null,{"$f":"IFERROR(VLOOKUP(#REF!,القائمة!$D$2:$E$6,2,0),\"\")","v":""},null,"","",null,"",""]
[null,null,null,null,null,null,{"$f":"IFERROR(VLOOKUP(#REF!,القائمة!$D$2:$E$6,2,0),\"\")","v":""},null,"","",null,"",""]
[null,null,null,null,null,null,{"$f":"IFERROR(VLOOKUP(#REF!,القائمة!$D$2:$E$6,2,0),\"\")","v":""},null,"","",null,"",""]
[null,null,null,null,null,null,{"$f":"IFERROR(VLOOKUP(#REF!,القائمة!$D$2:$E$6,2,0),\"\")","v":""},null,"","",null,"",""]
[null,null,null,null,null,null,{"$f":"IFERROR(VLOOKUP(#REF!,القائمة!$D$2:$E$6,2,0),\"\")","v":""},null,"","",null,"",""]
[null,null,null,null,null,null,{"$f":"IFERROR(VLOOKUP(#REF!,القائمة!$D$2:$E$6,2,0),\"\")","v":""},null,"","",null,"",""]
[null,null,null,null,null,null,{"$f":"IFERROR(VLOOKUP(#REF!,القائمة!$D$2:$E$6,2,0),\"\")","v":""},null,"","",null,"",""]
[null,null,null,null,null,null,{"$f":"IFERROR(VLOOKUP(#REF!,القائمة!$D$2:$E$6,2,0),\"\")","v":""},null,"","",null,"",""]
[null,null,null,null,null,null,{"$f":"IFERROR(VLOOKUP(#REF!,القائمة!$D$2:$E$6,2,0),\"\")","v":""},null,"","",null,"",""]
[null,null,null,null,null,null,{"$f":"IFERROR(VLOOKUP(#REF!,القائمة!$D$2:$E$6,2,0),\"\")","v":""},null,{"$f":"IF($H133=\"\",\"\",INDEX(OFFSET(OFFSET(Percent,,5),,7*(MATCH($G133,Work,0)-1)),MATCH($H133,Percent,0),0))","v":""},{"$f":"IF($H133=\"\",\"\",INDEX(OFFSET(OFFSET(Percent,,6),,7*(MATCH($G133,Work,0)-1)),MATCH($H133,Percent,0),0))","v":""},null,"",""]
[null,null,null,null,null,null,{"$f":"IFERROR(VLOOKUP(#REF!,القائمة!$D$2:$E$6,2,0),\"\")","v":""},null,"","",null,{"$f":"IF(+C134=\"\",\"\",+C134)","v":""},{"$f":"IF(+C134=\"\",\"\",+J134)","v":""}]
[null,null,null,null,null,null,{"$f":"IFERROR(VLOOKUP(#REF!,القائمة!$D$2:$E$6,2,0),\"\")","v":""},null,"","",null,"",""]
[null,null,null,null,null,null,{"$f":"IFERROR(VLOOKUP(#REF!,القائمة!$D$2:$E$6,2,0),\"\")","v":""},null,"","",null,"",""]
[null,null,null,null,null,null,{"$f":"IFERROR(VLOOKUP(#REF!,القائمة!$D$2:$E$6,2,0),\"\")","v":""},null,"","",null,"",""]
[null,null,null,null,null,null,{"$f":"IFERROR(VLOOKUP(#REF!,القائمة!$D$2:$E$6,2,0),\"\")","v":""},null,"","",null,"",""]
[null,null,null,null,null,null,{"$f":"IFERROR(VLOOKUP(#REF!,القائمة!$D$2:$E$6,2,0),\"\")","v":""},null,"","",null,"",""]
[null,null,null,null,null,null,{"$f":"IFERROR(VLOOKUP(#REF!,القائمة!$D$2:$E$6,2,0),\"\")","v":""},null,"","",null,"",""]
[null,null,null,null,null,null,{"$f":"IFERROR(VLOOKUP(#REF!,القائمة!$D$2:$E$6,2,0),\"\")","v":""},null,"","",null,"",""]
[null,null,null,null,null,null,{"$f":"IFERROR(VLOOKUP(#REF!,القائمة!$D$2:$E$6,2,0),\"\")","v":""},null,"","",null,"",""]
[null,null,null,null,null,null,{"$f":"IFERROR(VLOOKUP(#REF!,القائمة!$D$2:$E$6,2,0),\"\")","v":""},null,"","",null,"",""]
[null,null,null,null,null,null,{"$f":"IFERROR(VLOOKUP(#REF!,القائمة!$D$2:$E$6,2,0),\"\")","v":""},null,"","",null,"",""]
[null,null,null,null,null,null,{"$f":"IFERROR(VLOOKUP(#REF!,القائمة!$D$2:$E$6,2,0),\"\")","v":""},null,"","",null,"",""]
[null,null,null,null,null,null,{"$f":"IFERROR(VLOOKUP(#REF!,القائمة!$D$2:$E$6,2,0),\"\")","v":""},null,"","",null,"",""]
[null,null,null,null,null,null,{"$f":"IFERROR(VLOOKUP(#REF!,القائمة!$D$2:$E$6,2,0),\"\")","v":""},null,"","",null,"",""]
[null,null,null,null,null,null,{"$f":"IFERROR(VLOOKUP(#REF!,القائمة!$D$2:$E$6,2,0),\"\")","v":""},null,"","",null,"",""]
[null,null,null,null,null,null,{"$f":"IFERROR(VLOOKUP(#REF!,القائمة!$D$2:$E$6,2,0),\"\")","v":""},null,"","",null,"",""]
[null,null,null,null,null,null,{"$f":"IFERROR(VLOOKUP(#REF!,القائمة!$D$2:$E$6,2,0),\"\")","v":""},null,"","",null,"",""]
[null,null,null,null,null,null,{"$f":"IFERROR(VLOOKUP(#REF!,القائمة!$D$2:$E$6,2,0),\"\")","v":""},null,"","",null,"",""]
[null,null,null,null,null,null,{"$f":"IFERROR(VLOOKUP(#REF!,القائمة!$D$2:$E$6,2,0),\"\")","v":""},null,"","",null,"",""]
[null,null,null,null,null,null,{"$f":"IFERROR(VLOOKUP(#REF!,القائمة!$D$2:$E$6,2,0),\"\")","v":""},null,"","",null,"",""]
[null,null,null,null,null,null,{"$f":"IFERROR(VLOOKUP(#REF!,القائمة!$D$2:$E$6,2,0),\"\")","v":""},null,"","",null,"",""]
[null,null,null,null,null,null,{"$f":"IFERROR(VLOOKUP(#REF!,القائمة!$D$2:$E$6,2,0),\"\")","v":""},null,"","",null,"",""]
[null,null,null,null,null,null,{"$f":"IFERROR(VLOOKUP(#REF!,القائمة!$D$2:$E$6,2,0),\"\")","v":""},null,"","",null,"",""]
[null,null,null,null,null,null,{"$f":"IFERROR(VLOOKUP(#REF!,القائمة!$D$2:$E$6,2,0),\"\")","v":""},null,"","",null,"",""]
[null,null,null,null,null,null,{"$f":"IFERROR(VLOOKUP(#REF!,القائمة!$D$2:$E$6,2,0),\"\")","v":""},null,"","",null,"",""]
[null,null,null,null,null,null,{"$f":"IFERROR(VLOOKUP(#REF!,القائمة!$D$2:$E$6,2,0),\"\")","v":""},null,"","",null,"",""]
[null,null,null,null,null,null,{"$f":"IFERROR(VLOOKUP(#REF!,القائمة!$D$2:$E$6,2,0),\"\")","v":""},null,"","",null,"",""]
[null,null,null,null,null,null,{"$f":"IFERROR(VLOOKUP(#REF!,القائمة!$D$2:$E$6,2,0),\"\")","v":""},null,"","",null,"",""]
[null,null,null,null,null,null,{"$f":"IFERROR(VLOOKUP(#REF!,القائمة!$D$2:$E$6,2,0),\"\")","v":""},null,"","",null,"",""]
[null,null,null,null,null,null,{"$f":"IFERROR(VLOOKUP(#REF!,القائمة!$D$2:$E$6,2,0),\"\")","v":""},null,"","",null,"",""]
[null,null,null,null,null,null,{"$f":"IFERROR(VLOOKUP(#REF!,القائمة!$D$2:$E$6,2,0),\"\")","v":""},null,"","",null,"",""]
[null,null,null,null,null,null,{"$f":"IFERROR(VLOOKUP(#REF!,القائمة!$D$2:$E$6,2,0),\"\")","v":""},null,"","",null,"",""]
[null,null,null,null,null,null,{"$f":"IFERROR(VLOOKUP(#REF!,القائمة!$D$2:$E$6,2,0),\"\")","v":""},null,"","",null,"",""]
[null,null,null,null,null,null,{"$f":"IFERROR(VLOOKUP(#REF!,القائمة!$D$2:$E$6,2,0),\"\")","v":""},null,"","",null,"",""]
[null,null,null,null,null,null,{"$f":"IFERROR(VLOOKUP(#REF!,القائمة!$D$2:$E$6,2,0),\"\")","v":""},null,"","",null,"",""]
[null,null,null,null,null,null,{"$f":"IFERROR(VLOOKUP(#REF!,القائمة!$D$2:$E$6,2,0),\"\")","v":""},null,"","",null,"",""]
[null,null,null,null,null,null,{"$f":"IFERROR(VLOOKUP(#REF!,القائمة!$D$2:$E$6,2,0),\"\")","v":""},null,"","",null,"",""]
[null,null,null,null,null,null,{"$f":"IFERROR(VLOOKUP(#REF!,القائمة!$D$2:$E$6,2,0),\"\")","v":""},null,"","",null,"",""]
[null,null,null,null,null,null,{"$f":"IFERROR(VLOOKUP(#REF!,القائمة!$D$2:$E$6,2,0),\"\")","v":""},null,"","",null,"",""]
[null,null,null,null,null,null,{"$f":"IFERROR(VLOOKUP(#REF!,القائمة!$D$2:$E$6,2,0),\"\")","v":""},null,"","",null,"",""]
[null,null,null,null,null,null,{"$f":"IFERROR(VLOOKUP(#REF!,القائمة!$D$2:$E$6,2,0),\"\")","v":""},null,"","",null,"",""]
[null,null,null,null,null,null,{"$f":"IFERROR(VLOOKUP(#REF!,القائمة!$D$2:$E$6,2,0),\"\")","v":""},null,"","",null,"",""]
[null,null,null,null,null,null,{"$f":"IFERROR(VLOOKUP(#REF!,القائمة!$D$2:$E$6,2,0),\"\")","v":""},null,"","",null,"",""]
[null,null,null,null,null,null,{"$f":"IFERROR(VLOOKUP(#REF!,القائمة!$D$2:$E$6,2,0),\"\")","v":""},null,"","",null,"",""]
[null,null,null,null,null,null,{"$f":"IFERROR(VLOOKUP(#REF!,القائمة!$D$2:$E$6,2,0),\"\")","v":""},null,"","",null,"",""]
[null,null,null,null,null,null,{"$f":"IFERROR(VLOOKUP(#REF!,القائمة!$D$2:$E$6,2,0),\"\")","v":""},null,"","",null,"",""]
[null,null,null,null,null,null,{"$f":"IFERROR(VLOOKUP(#REF!,القائمة!$D$2:$E$6,2,0),\"\")","v":""},null,"","",null,"",""]
[null,null,null,null,null,null,{"$f":"IFERROR(VLOOKUP(#REF!,القائمة!$D$2:$E$6,2,0),\"\")","v":""},null,"","",null,"",""]
[null,null,null,null,null,null,{"$f":"IFERROR(VLOOKUP(#REF!,القائمة!$D$2:$E$6,2,0),\"\")","v":""},null,"","",null,"",""]
[null,null,null,null,null,null,{"$f":"IFERROR(VLOOKUP(#REF!,القائمة!$D$2:$E$6,2,0),\"\")","v":""},null,"","",null,"",""]
[null,null,null,null,null,null,{"$f":"IFERROR(VLOOKUP(#REF!,القائمة!$D$2:$E$6,2,0),\"\")","v":""},null,"","",null,"",""]
[null,null,null,null,null,null,{"$f":"IFERROR(VLOOKUP(#REF!,القائمة!$D$2:$E$6,2,0),\"\")","v":""},null,"","",null,"",""]
[null,null,null,null,null,null,{"$f":"IFERROR(VLOOKUP(#REF!,القائمة!$D$2:$E$6,2,0),\"\")","v":""},null,"","",null,"",""]
[null,null,null,null,null,null,{"$f":"IFERROR(VLOOKUP(#REF!,القائمة!$D$2:$E$6,2,0),\"\")","v":""},null,"","",null,"",""]
[null,null,null,null,null,null,{"$f":"IFERROR(VLOOKUP(#REF!,القائمة!$D$2:$E$6,2,0),\"\")","v":""},null,"","",null,"",""]
[null,null,null,null,null,null,{"$f":"IFERROR(VLOOKUP(#REF!,القائمة!$D$2:$E$6,2,0),\"\")","v":""},null,"","",null,"",""]
[null,null,null,null,null,null,{"$f":"IFERROR(VLOOKUP(#REF!,القائمة!$D$2:$E$6,2,0),\"\")","v":""},null,"","",null,"",""]
[null,null,null,null,null,null,{"$f":"IFERROR(VLOOKUP(#REF!,القائمة!$D$2:$E$6,2,0),\"\")","v":""},null,"","",null,"",""]
[null,null,null,null,null,null,{"$f":"IFERROR(VLOOKUP(#REF!,القائمة!$D$2:$E$6,2,0),\"\")","v":""},null,"","",null,"",""]
[null,null,null,null,null,null,{"$f":"IFERROR(VLOOKUP(#REF!,القائمة!$D$2:$E$6,2,0),\"\")","v":""},null,"","",null,"",""]
[null,null,null,null,null,null,{"$f":"IFERROR(VLOOKUP(#REF!,القائمة!$D$2:$E$6,2,0),\"\")","v":""},null,"","",null,"",""]
[null,null,null,null,null,null,{"$f":"IFERROR(VLOOKUP(#REF!,القائمة!$D$2:$E$6,2,0),\"\")","v":""},null,"","",null,"",""]
[null,null,null,null,null,null,{"$f":"IFERROR(VLOOKUP(#REF!,القائمة!$D$2:$E$6,2,0),\"\")","v":""},null,"","",null,"",""]
[null,null,null,null,null,null,{"$f":"IFERROR(VLOOKUP(#REF!,القائمة!$D$2:$E$6,2,0),\"\")","v":""},null,{"$f":"IF($H197=\"\",\"\",INDEX(OFFSET(OFFSET(Percent,,5),,7*(MATCH($G197,Work,0)-1)),MATCH($H197,Percent,0),0))","v":""},{"$f":"IF($H197=\"\",\"\",INDEX(OFFSET(OFFSET(Percent,,6),,7*(MATCH($G197,Work,0)-1)),MATCH($H197,Percent,0),0))","v":""},null,"",""]
[null,null,null,null,null,null,{"$f":"IFERROR(VLOOKUP(#REF!,القائمة!$D$2:$E$6,2,0),\"\")","v":""},null,"","",null,{"$f":"IF(+C198=\"\",\"\",+C198)","v":""},{"$f":"IF(+C198=\"\",\"\",+J198)","v":""}]
[null,null,null,null,null,null,{"$f":"IFERROR(VLOOKUP(#REF!,القائمة!$D$2:$E$6,2,0),\"\")","v":""},null,"","",null,"",""]
[null,null,null,null,null,null,{"$f":"IFERROR(VLOOKUP(#REF!,القائمة!$D$2:$E$6,2,0),\"\")","v":""},null,"","",null,"",""]
[null,null,null,null,null,null,{"$f":"IFERROR(VLOOKUP(#REF!,القائمة!$D$2:$E$6,2,0),\"\")","v":""},null,"","",null,"",""]
[null,null,null,null,null,null,{"$f":"IFERROR(VLOOKUP(#REF!,القائمة!$D$2:$E$6,2,0),\"\")","v":""},null,"","",null,"",""]
[null,null,null,null,null,null,{"$f":"IFERROR(VLOOKUP(#REF!,القائمة!$D$2:$E$6,2,0),\"\")","v":""},null,"","",null,"",""]
[null,null,null,null,null,null,{"$f":"IFERROR(VLOOKUP(#REF!,القائمة!$D$2:$E$6,2,0),\"\")","v":""},null,"","",null,"",""]
[null,null,null,null,null,null,{"$f":"IFERROR(VLOOKUP(#REF!,القائمة!$D$2:$E$6,2,0),\"\")","v":""},null,"","",null,"",""]
[null,null,null,null,null,null,{"$f":"IFERROR(VLOOKUP(#REF!,القائمة!$D$2:$E$6,2,0),\"\")","v":""},null,"","",null,"",""]
[null,null,null,null,null,null,{"$f":"IFERROR(VLOOKUP(#REF!,القائمة!$D$2:$E$6,2,0),\"\")","v":""},null,"","",null,"",""]
[null,null,null,null,null,null,{"$f":"IFERROR(VLOOKUP(#REF!,القائمة!$D$2:$E$6,2,0),\"\")","v":""},null,"","",null,"",""]
[null,null,null,null,null,null,{"$f":"IFERROR(VLOOKUP(#REF!,القائمة!$D$2:$E$6,2,0),\"\")","v":""},null,"","",null,"",""]
[null,null,null,null,null,null,{"$f":"IFERROR(VLOOKUP(#REF!,القائمة!$D$2:$E$6,2,0),\"\")","v":""},null,"","",null,"",""]
[null,null,null,null,null,null,{"$f":"IFERROR(VLOOKUP(#REF!,القائمة!$D$2:$E$6,2,0),\"\")","v":""},null,"","",null,"",""]
[null,null,null,null,null,null,{"$f":"IFERROR(VLOOKUP(#REF!,القائمة!$D$2:$E$6,2,0),\"\")","v":""},null,"","",null,"",""]
[null,null,null,null,null,null,{"$f":"IFERROR(VLOOKUP(#REF!,القائمة!$D$2:$E$6,2,0),\"\")","v":""},null,"","",null,"",""]
[null,null,null,null,null,null,{"$f":"IFERROR(VLOOKUP(#REF!,القائمة!$D$2:$E$6,2,0),\"\")","v":""},null,"","",null,"",""]
[null,null,null,null,null,null,{"$f":"IFERROR(VLOOKUP(#REF!,القائمة!$D$2:$E$6,2,0),\"\")","v":""},null,"","",null,"",""]
[null,null,null,null,null,null,{"$f":"IFERROR(VLOOKUP(#REF!,القائمة!$D$2:$E$6,2,0),\"\")","v":""},null,"","",null,"",""]
[null,null,null,null,null,null,{"$f":"IFERROR(VLOOKUP(#REF!,القائمة!$D$2:$E$6,2,0),\"\")","v":""},null,"","",null,"",""]
[null,null,null,null,null,null,{"$f":"IFERROR(VLOOKUP(#REF!,القائمة!$D$2:$E$6,2,0),\"\")","v":""},null,"","",null,"",""]
[null,null,null,null,null,null,{"$f":"IFERROR(VLOOKUP(#REF!,القائمة!$D$2:$E$6,2,0),\"\")","v":""},null,"","",null,"",""]
[null,null,null,null,null,null,{"$f":"IFERROR(VLOOKUP(#REF!,القائمة!$D$2:$E$6,2,0),\"\")","v":""},null,"","",null,"",""]
[null,null,null,null,null,null,{"$f":"IFERROR(VLOOKUP(#REF!,القائمة!$D$2:$E$6,2,0),\"\")","v":""},null,"","",null,"",""]
[null,null,null,null,null,null,{"$f":"IFERROR(VLOOKUP(#REF!,القائمة!$D$2:$E$6,2,0),\"\")","v":""},null,"","",null,"",""]
[null,null,null,null,null,null,{"$f":"IFERROR(VLOOKUP(#REF!,القائمة!$D$2:$E$6,2,0),\"\")","v":""},null,"","",null,"",""]
[null,null,null,null,null,null,{"$f":"IFERROR(VLOOKUP(#REF!,القائمة!$D$2:$E$6,2,0),\"\")","v":""},null,"","",null,"",""]
[null,null,null,null,null,null,{"$f":"IFERROR(VLOOKUP(#REF!,القائمة!$D$2:$E$6,2,0),\"\")","v":""},null,"","",null,"",""]
[null,null,null,null,null,null,{"$f":"IFERROR(VLOOKUP(#REF!,القائمة!$D$2:$E$6,2,0),\"\")","v":""},null,"","",null,"",""]
[null,null,null,null,null,null,{"$f":"IFERROR(VLOOKUP(#REF!,القائمة!$D$2:$E$6,2,0),\"\")","v":""},null,"","",null,"",""]
[null,null,null,null,null,null,{"$f":"IFERROR(VLOOKUP(#REF!,القائمة!$D$2:$E$6,2,0),\"\")","v":""},null,"","",null,"",""]
[null,null,null,null,null,null,{"$f":"IFERROR(VLOOKUP(#REF!,القائمة!$D$2:$E$6,2,0),\"\")","v":""},null,"","",null,"",""]
[null,null,null,null,null,null,{"$f":"IFERROR(VLOOKUP(#REF!,القائمة!$D$2:$E$6,2,0),\"\")","v":""},null,"","",null,"",""]
[null,null,null,null,null,null,{"$f":"IFERROR(VLOOKUP(#REF!,القائمة!$D$2:$E$6,2,0),\"\")","v":""},null,"","",null,"",""]
[null,null,null,null,null,null,{"$f":"IFERROR(VLOOKUP(#REF!,القائمة!$D$2:$E$6,2,0),\"\")","v":""},null,"","",null,"",""]
[null,null,null,null,null,null,{"$f":"IFERROR(VLOOKUP(#REF!,القائمة!$D$2:$E$6,2,0),\"\")","v":""},null,"","",null,"",""]
[null,null,null,null,null,null,{"$f":"IFERROR(VLOOKUP(#REF!,القائمة!$D$2:$E$6,2,0),\"\")","v":""},null,"","",null,"",""]
[null,null,null,null,null,null,{"$f":"IFERROR(VLOOKUP(#REF!,القائمة!$D$2:$E$6,2,0),\"\")","v":""},null,"","",null,"",""]
[null,null,null,null,null,null,{"$f":"IFERROR(VLOOKUP(#REF!,القائمة!$D$2:$E$6,2,0),\"\")","v":""},null,"","",null,"",""]
[null,null,null,null,null,null,{"$f":"IFERROR(VLOOKUP(#REF!,القائمة!$D$2:$E$6,2,0),\"\")","v":""},null,"","",null,"",""]
[null,null,null,null,null,null,{"$f":"IFERROR(VLOOKUP(#REF!,القائمة!$D$2:$E$6,2,0),\"\")","v":""},null,"","",null,"",""]
[null,null,null,null,null,null,{"$f":"IFERROR(VLOOKUP(#REF!,القائمة!$D$2:$E$6,2,0),\"\")","v":""},null,"","",null,"",""]
[null,null,null,null,null,null,{"$f":"IFERROR(VLOOKUP(#REF!,القائمة!$D$2:$E$6,2,0),\"\")","v":""},null,"","",null,"",""]
[null,null,null,null,null,null,{"$f":"IFERROR(VLOOKUP(#REF!,القائمة!$D$2:$E$6,2,0),\"\")","v":""},null,"","",null,"",""]
[null,null,null,null,null,null,{"$f":"IFERROR(VLOOKUP(#REF!,القائمة!$D$2:$E$6,2,0),\"\")","v":""},null,"","",null,"",""]
[null,null,null,null,null,null,{"$f":"IFERROR(VLOOKUP(#REF!,القائمة!$D$2:$E$6,2,0),\"\")","v":""},null,"","",null,"",""]
[null,null,null,null,null,null,{"$f":"IFERROR(VLOOKUP(#REF!,القائمة!$D$2:$E$6,2,0),\"\")","v":""},null,"","",null,"",""]
[null,null,null,null,null,null,{"$f":"IFERROR(VLOOKUP(#REF!,القائمة!$D$2:$E$6,2,0),\"\")","v":""},null,"","",null,"",""]
[null,null,null,null,null,null,{"$f":"IFERROR(VLOOKUP(#REF!,القائمة!$D$2:$E$6,2,0),\"\")","v":""},null,"","",null,"",""]
[null,null,null,null,null,null,{"$f":"IFERROR(VLOOKUP(#REF!,القائمة!$D$2:$E$6,2,0),\"\")","v":""},null,"","",null,"",""]
[null,null,null,null,null,null,{"$f":"IFERROR(VLOOKUP(#REF!,القائمة!$D$2:$E$6,2,0),\"\")","v":""},null,"","",null,"",""]
[null,null,null,null,null,null,{"$f":"IFERROR(VLOOKUP(#REF!,القائمة!$D$2:$E$6,2,0),\"\")","v":""},null,"","",null,"",""]
[null,null,null,null,null,null,{"$f":"IFERROR(VLOOKUP(#REF!,القائمة!$D$2:$E$6,2,0),\"\")","v":""},null,"","",null,"",""]
[null,null,null,null,null,null,{"$f":"IFERROR(VLOOKUP(#REF!,القائمة!$D$2:$E$6,2,0),\"\")","v":""},null,"","",null,"",""]
[null,null,null,null,null,null,{"$f":"IFERROR(VLOOKUP(#REF!,القائمة!$D$2:$E$6,2,0),\"\")","v":""},null,"","",null,"",""]
[null,null,null,null,null,null,{"$f":"IFERROR(VLOOKUP(#REF!,القائمة!$D$2:$E$6,2,0),\"\")","v":""},null,"","",null,"",""]
[null,null,null,null,null,null,{"$f":"IFERROR(VLOOKUP(#REF!,القائمة!$D$2:$E$6,2,0),\"\")","v":""},null,"","",null,"",""]
[null,null,null,null,null,null,{"$f":"IFERROR(VLOOKUP(#REF!,القائمة!$D$2:$E$6,2,0),\"\")","v":""},null,"","",null,"",""]
[null,null,null,null,null,null,{"$f":"IFERROR(VLOOKUP(#REF!,القائمة!$D$2:$E$6,2,0),\"\")","v":""},null,"","",null,"",""]
[null,null,null,null,null,null,{"$f":"IFERROR(VLOOKUP(#REF!,القائمة!$D$2:$E$6,2,0),\"\")","v":""},null,"","",null,"",""]
[null,null,null,null,null,null,{"$f":"IFERROR(VLOOKUP(#REF!,القائمة!$D$2:$E$6,2,0),\"\")","v":""},null,"","",null,"",""]
[null,null,null,null,null,null,{"$f":"IFERROR(VLOOKUP(#REF!,القائمة!$D$2:$E$6,2,0),\"\")","v":""},null,"","",null,"",""]
[null,null,null,null,null,null,{"$f":"IFERROR(VLOOKUP(#REF!,القائمة!$D$2:$E$6,2,0),\"\")","v":""},null,"","",null,"",""]
[null,null,null,null,null,null,{"$f":"IFERROR(VLOOKUP(#REF!,القائمة!$D$2:$E$6,2,0),\"\")","v":""},null,{"$f":"IF($H261=\"\",\"\",INDEX(OFFSET(OFFSET(Percent,,5),,7*(MATCH($G261,Work,0)-1)),MATCH($H261,Percent,0),0))","v":""},{"$f":"IF($H261=\"\",\"\",INDEX(OFFSET(OFFSET(Percent,,6),,7*(MATCH($G261,Work,0)-1)),MATCH($H261,Percent,0),0))","v":""},null,"",""]
[null,null,null,null,null,null,{"$f":"IFERROR(VLOOKUP(#REF!,القائمة!$D$2:$E$6,2,0),\"\")","v":""},null,"","",null,{"$f":"IF(+C262=\"\",\"\",+C262)","v":""},{"$f":"IF(+C262=\"\",\"\",+J262)","v":""}]
[null,null,null,null,null,null,{"$f":"IFERROR(VLOOKUP(#REF!,القائمة!$D$2:$E$6,2,0),\"\")","v":""},null,"","",null,"",""]
[null,null,null,null,null,null,{"$f":"IFERROR(VLOOKUP(#REF!,القائمة!$D$2:$E$6,2,0),\"\")","v":""},null,"","",null,"",""]
[null,null,null,null,null,null,{"$f":"IFERROR(VLOOKUP(#REF!,القائمة!$D$2:$E$6,2,0),\"\")","v":""},null,"","",null,"",""]
[null,null,null,null,null,null,{"$f":"IFERROR(VLOOKUP(#REF!,القائمة!$D$2:$E$6,2,0),\"\")","v":""},null,"","",null,"",""]
[null,null,null,null,null,null,{"$f":"IFERROR(VLOOKUP(#REF!,القائمة!$D$2:$E$6,2,0),\"\")","v":""},null,"","",null,"",""]
[null,null,null,null,null,null,{"$f":"IFERROR(VLOOKUP(#REF!,القائمة!$D$2:$E$6,2,0),\"\")","v":""},null,"","",null,"",""]
[null,null,null,null,null,null,{"$f":"IFERROR(VLOOKUP(#REF!,القائمة!$D$2:$E$6,2,0),\"\")","v":""},null,"","",null,"",""]
[null,null,null,null,null,null,{"$f":"IFERROR(VLOOKUP(#REF!,القائمة!$D$2:$E$6,2,0),\"\")","v":""},null,"","",null,"",""]
[null,null,null,null,null,null,{"$f":"IFERROR(VLOOKUP(#REF!,القائمة!$D$2:$E$6,2,0),\"\")","v":""},null,"","",null,"",""]
[null,null,null,null,null,null,{"$f":"IFERROR(VLOOKUP(#REF!,القائمة!$D$2:$E$6,2,0),\"\")","v":""},null,"","",null,"",""]
[null,null,null,null,null,null,{"$f":"IFERROR(VLOOKUP(#REF!,القائمة!$D$2:$E$6,2,0),\"\")","v":""},null,"","",null,"",""]
[null,null,null,null,null,null,{"$f":"IFERROR(VLOOKUP(#REF!,القائمة!$D$2:$E$6,2,0),\"\")","v":""},null,"","",null,"",""]
[null,null,null,null,null,null,{"$f":"IFERROR(VLOOKUP(#REF!,القائمة!$D$2:$E$6,2,0),\"\")","v":""},null,"","",null,"",""]
[null,null,null,null,null,null,{"$f":"IFERROR(VLOOKUP(#REF!,القائمة!$D$2:$E$6,2,0),\"\")","v":""},null,"","",null,"",""]
[null,null,null,null,null,null,{"$f":"IFERROR(VLOOKUP(#REF!,القائمة!$D$2:$E$6,2,0),\"\")","v":""},null,"","",null,"",""]
[null,null,null,null,null,null,{"$f":"IFERROR(VLOOKUP(#REF!,القائمة!$D$2:$E$6,2,0),\"\")","v":""},null,"","",null,"",""]
[null,null,null,null,null,null,{"$f":"IFERROR(VLOOKUP(#REF!,القائمة!$D$2:$E$6,2,0),\"\")","v":""},null,"","",null,"",""]
[null,null,null,null,null,null,{"$f":"IFERROR(VLOOKUP(#REF!,القائمة!$D$2:$E$6,2,0),\"\")","v":""},null,"","",null,"",""]
[null,null,null,null,null,null,{"$f":"IFERROR(VLOOKUP(#REF!,القائمة!$D$2:$E$6,2,0),\"\")","v":""},null,"","",null,"",""]
[null,null,null,null,null,null,{"$f":"IFERROR(VLOOKUP(#REF!,القائمة!$D$2:$E$6,2,0),\"\")","v":""},null,"","",null,"",""]
[null,null,null,null,null,null,{"$f":"IFERROR(VLOOKUP(#REF!,القائمة!$D$2:$E$6,2,0),\"\")","v":""},null,"","",null,"",""]
[null,null,null,null,null,null,{"$f":"IFERROR(VLOOKUP(#REF!,القائمة!$D$2:$E$6,2,0),\"\")","v":""},null,"","",null,"",""]
[null,null,null,null,null,null,{"$f":"IFERROR(VLOOKUP(#REF!,القائمة!$D$2:$E$6,2,0),\"\")","v":""},null,"","",null,"",""]
[null,null,null,null,null,null,{"$f":"IFERROR(VLOOKUP(#REF!,القائمة!$D$2:$E$6,2,0),\"\")","v":""},null,"","",null,"",""]
[null,null,null,null,null,null,{"$f":"IFERROR(VLOOKUP(#REF!,القائمة!$D$2:$E$6,2,0),\"\")","v":""},null,"","",null,"",""]
[null,null,null,null,null,null,{"$f":"IFERROR(VLOOKUP(#REF!,القائمة!$D$2:$E$6,2,0),\"\")","v":""},null,"","",null,"",""]
[null,null,null,null,null,null,{"$f":"IFERROR(VLOOKUP(#REF!,القائمة!$D$2:$E$6,2,0),\"\")","v":""},null,"","",null,"",""]
[null,null,null,null,null,null,{"$f":"IFERROR(VLOOKUP(#REF!,القائمة!$D$2:$E$6,2,0),\"\")","v":""},null,"","",null,"",""]
[null,null,null,null,null,null,{"$f":"IFERROR(VLOOKUP(#REF!,القائمة!$D$2:$E$6,2,0),\"\")","v":""},null,"","",null,"",""]
[null,null,null,null,null,null,{"$f":"IFERROR(VLOOKUP(#REF!,القائمة!$D$2:$E$6,2,0),\"\")","v":""},null,"","",null,"",""]
[null,null,null,null,null,null,{"$f":"IFERROR(VLOOKUP(#REF!,القائمة!$D$2:$E$6,2,0),\"\")","v":""},null,"","",null,"",""]
[null,null,null,null,null,null,{"$f":"IFERROR(VLOOKUP(#REF!,القائمة!$D$2:$E$6,2,0),\"\")","v":""},null,"","",null,"",""]
[null,null,null,null,null,null,{"$f":"IFERROR(VLOOKUP(#REF!,القائمة!$D$2:$E$6,2,0),\"\")","v":""},null,"","",null,"",""]
[null,null,null,null,null,null,{"$f":"IFERROR(VLOOKUP(#REF!,القائمة!$D$2:$E$6,2,0),\"\")","v":""},null,"","",null,"",""]
[null,null,null,null,null,null,{"$f":"IFERROR(VLOOKUP(#REF!,القائمة!$D$2:$E$6,2,0),\"\")","v":""},null,"","",null,"",""]
[null,null,null,null,null,null,{"$f":"IFERROR(VLOOKUP(#REF!,القائمة!$D$2:$E$6,2,0),\"\")","v":""},null,"","",null,"",""]
[null,null,null,null,null,null,{"$f":"IFERROR(VLOOKUP(#REF!,القائمة!$D$2:$E$6,2,0),\"\")","v":""},null,"","",null,"",""]
[null,null,null,null,null,null,{"$f":"IFERROR(VLOOKUP(#REF!,القائمة!$D$2:$E$6,2,0),\"\")","v":""},null,"","",null,"",""]
[null,null,null,null,null,null,{"$f":"IFERROR(VLOOKUP(#REF!,القائمة!$D$2:$E$6,2,0),\"\")","v":""},null,"","",null,"",""]
[null,null,null,null,null,null,{"$f":"IFERROR(VLOOKUP(#REF!,القائمة!$D$2:$E$6,2,0),\"\")","v":""},null,"","",null,"",""]
[null,null,null,null,null,null,{"$f":"IFERROR(VLOOKUP(#REF!,القائمة!$D$2:$E$6,2,0),\"\")","v":""},null,"","",null,"",""]
[null,null,null,null,null,null,{"$f":"IFERROR(VLOOKUP(#REF!,القائمة!$D$2:$E$6,2,0),\"\")","v":""},null,"","",null,"",""]
[null,null,null,null,null,null,{"$f":"IFERROR(VLOOKUP(#REF!,القائمة!$D$2:$E$6,2,0),\"\")","v":""},null,"","",null,"",""]
[null,null,null,null,null,null,{"$f":"IFERROR(VLOOKUP(#REF!,القائمة!$D$2:$E$6,2,0),\"\")","v":""},null,"","",null,"",""]
[null,null,null,null,null,null,{"$f":"IFERROR(VLOOKUP(#REF!,القائمة!$D$2:$E$6,2,0),\"\")","v":""},null,"","",null,"",""]
[null,null,null,null,null,null,{"$f":"IFERROR(VLOOKUP(#REF!,القائمة!$D$2:$E$6,2,0),\"\")","v":""},null,"","",null,"",""]
[null,null,null,null,null,null,{"$f":"IFERROR(VLOOKUP(#REF!,القائمة!$D$2:$E$6,2,0),\"\")","v":""},null,"","",null,"",""]
[null,null,null,null,null,null,{"$f":"IFERROR(VLOOKUP(#REF!,القائمة!$D$2:$E$6,2,0),\"\")","v":""},null,"","",null,"",""]
[null,null,null,null,null,null,{"$f":"IFERROR(VLOOKUP(#REF!,القائمة!$D$2:$E$6,2,0),\"\")","v":""},null,"","",null,"",""]
[null,null,null,null,null,null,{"$f":"IFERROR(VLOOKUP(#REF!,القائمة!$D$2:$E$6,2,0),\"\")","v":""},null,"","",null,"",""]
[null,null,null,null,null,null,{"$f":"IFERROR(VLOOKUP(#REF!,القائمة!$D$2:$E$6,2,0),\"\")","v":""},null,"","",null,"",""]
[null,null,null,null,null,null,{"$f":"IFERROR(VLOOKUP(#REF!,القائمة!$D$2:$E$6,2,0),\"\")","v":""},null,"","",null,"",""]
[null,null,null,null,null,null,{"$f":"IFERROR(VLOOKUP(#REF!,القائمة!$D$2:$E$6,2,0),\"\")","v":""},null,"","",null,"",""]
[null,null,null,null,null,null,{"$f":"IFERROR(VLOOKUP(#REF!,القائمة!$D$2:$E$6,2,0),\"\")","v":""},null,"","",null,"",""]
[null,null,null,null,null,null,{"$f":"IFERROR(VLOOKUP(#REF!,القائمة!$D$2:$E$6,2,0),\"\")","v":""},null,"","",null,"",""]
[null,null,null,null,null,null,{"$f":"IFERROR(VLOOKUP(#REF!,القائمة!$D$2:$E$6,2,0),\"\")","v":""},null,"","",null,"",""]
[null,null,null,null,null,null,{"$f":"IFERROR(VLOOKUP(#REF!,القائمة!$D$2:$E$6,2,0),\"\")","v":""},null,"","",null,"",""]
[null,null,null,null,null,null,{"$f":"IFERROR(VLOOKUP(#REF!,القائمة!$D$2:$E$6,2,0),\"\")","v":""},null,"","",null,"",""]
[null,null,null,null,null,null,{"$f":"IFERROR(VLOOKUP(#REF!,القائمة!$D$2:$E$6,2,0),\"\")","v":""},null,"","",null,"",""]
[null,null,null,null,null,null,{"$f":"IFERROR(VLOOKUP(#REF!,القائمة!$D$2:$E$6,2,0),\"\")","v":""},null,"","",null,"",""]
[null,null,null,null,null,null,{"$f":"IFERROR(VLOOKUP(#REF!,القائمة!$D$2:$E$6,2,0),\"\")","v":""},null,"","",null,"",""]
[null,null,null,null,null,null,{"$f":"IFERROR(VLOOKUP(#REF!,القائمة!$D$2:$E$6,2,0),\"\")","v":""},null,"","",null,"",""]
[null,null,null,null,null,null,{"$f":"IFERROR(VLOOKUP(#REF!,القائمة!$D$2:$E$6,2,0),\"\")","v":""},null,{"$f":"IF($H325=\"\",\"\",INDEX(OFFSET(OFFSET(Percent,,5),,7*(MATCH($G325,Work,0)-1)),MATCH($H325,Percent,0),0))","v":""},{"$f":"IF($H325=\"\",\"\",INDEX(OFFSET(OFFSET(Percent,,6),,7*(MATCH($G325,Work,0)-1)),MATCH($H325,Percent,0),0))","v":""},null,"",""]
[null,null,null,null,null,null,{"$f":"IFERROR(VLOOKUP(#REF!,القائمة!$D$2:$E$6,2,0),\"\")","v":""},null,"","",null,{"$f":"IF(+C326=\"\",\"\",+C326)","v":""},{"$f":"IF(+C326=\"\",\"\",+J326)","v":""}]
[null,null,null,null,null,null,{"$f":"IFERROR(VLOOKUP(#REF!,القائمة!$D$2:$E$6,2,0),\"\")","v":""},null,"","",null,"",""]
[null,null,null,null,null,null,{"$f":"IFERROR(VLOOKUP(#REF!,القائمة!$D$2:$E$6,2,0),\"\")","v":""},null,"","",null,"",""]
[null,null,null,null,null,null,{"$f":"IFERROR(VLOOKUP(#REF!,القائمة!$D$2:$E$6,2,0),\"\")","v":""},null,"","",null,"",""]
[null,null,null,null,null,null,{"$f":"IFERROR(VLOOKUP(#REF!,القائمة!$D$2:$E$6,2,0),\"\")","v":""},null,"","",null,"",""]
[null,null,null,null,null,null,{"$f":"IFERROR(VLOOKUP(#REF!,القائمة!$D$2:$E$6,2,0),\"\")","v":""},null,"","",null,"",""]
[null,null,null,null,null,null,{"$f":"IFERROR(VLOOKUP(#REF!,القائمة!$D$2:$E$6,2,0),\"\")","v":""},null,"","",null,"",""]
[null,null,null,null,null,null,{"$f":"IFERROR(VLOOKUP(#REF!,القائمة!$D$2:$E$6,2,0),\"\")","v":""},null,"","",null,"",""]
[null,null,null,null,null,null,{"$f":"IFERROR(VLOOKUP(#REF!,القائمة!$D$2:$E$6,2,0),\"\")","v":""},null,"","",null,"",""]
[null,null,null,null,null,null,{"$f":"IFERROR(VLOOKUP(#REF!,القائمة!$D$2:$E$6,2,0),\"\")","v":""},null,"","",null,"",""]
[null,null,null,null,null,null,{"$f":"IFERROR(VLOOKUP(#REF!,القائمة!$D$2:$E$6,2,0),\"\")","v":""},null,"","",null,"",""]
[null,null,null,null,null,null,{"$f":"IFERROR(VLOOKUP(#REF!,القائمة!$D$2:$E$6,2,0),\"\")","v":""},null,"","",null,"",""]
[null,null,null,null,null,null,{"$f":"IFERROR(VLOOKUP(#REF!,القائمة!$D$2:$E$6,2,0),\"\")","v":""},null,"","",null,"",""]
[null,null,null,null,null,null,{"$f":"IFERROR(VLOOKUP(#REF!,القائمة!$D$2:$E$6,2,0),\"\")","v":""},null,"","",null,"",""]
[null,null,null,null,null,null,{"$f":"IFERROR(VLOOKUP(#REF!,القائمة!$D$2:$E$6,2,0),\"\")","v":""},null,"","",null,"",""]
[null,null,null,null,null,null,{"$f":"IFERROR(VLOOKUP(#REF!,القائمة!$D$2:$E$6,2,0),\"\")","v":""},null,"","",null,"",""]
[null,null,null,null,null,null,{"$f":"IFERROR(VLOOKUP(#REF!,القائمة!$D$2:$E$6,2,0),\"\")","v":""},null,"","",null,"",""]
[null,null,null,null,null,null,{"$f":"IFERROR(VLOOKUP(#REF!,القائمة!$D$2:$E$6,2,0),\"\")","v":""},null,"","",null,"",""]
[null,null,null,null,null,null,{"$f":"IFERROR(VLOOKUP(#REF!,القائمة!$D$2:$E$6,2,0),\"\")","v":""},null,"","",null,"",""]
[null,null,null,null,null,null,{"$f":"IFERROR(VLOOKUP(#REF!,القائمة!$D$2:$E$6,2,0),\"\")","v":""},null,"","",null,"",""]
[null,null,null,null,null,null,{"$f":"IFERROR(VLOOKUP(#REF!,القائمة!$D$2:$E$6,2,0),\"\")","v":""},null,"","",null,"",""]
[null,null,null,null,null,null,{"$f":"IFERROR(VLOOKUP(#REF!,القائمة!$D$2:$E$6,2,0),\"\")","v":""},null,"","",null,"",""]
[null,null,null,null,null,null,{"$f":"IFERROR(VLOOKUP(#REF!,القائمة!$D$2:$E$6,2,0),\"\")","v":""},null,"","",null,"",""]
[null,null,null,null,null,null,{"$f":"IFERROR(VLOOKUP(#REF!,القائمة!$D$2:$E$6,2,0),\"\")","v":""},null,"","",null,"",""]
[null,null,null,null,null,null,{"$f":"IFERROR(VLOOKUP(#REF!,القائمة!$D$2:$E$6,2,0),\"\")","v":""},null,"","",null,"",""]
[null,null,null,null,null,null,{"$f":"IFERROR(VLOOKUP(#REF!,القائمة!$D$2:$E$6,2,0),\"\")","v":""},null,"","",null,"",""]
[null,null,null,null,null,null,{"$f":"IFERROR(VLOOKUP(#REF!,القائمة!$D$2:$E$6,2,0),\"\")","v":""},null,"","",null,"",""]
[null,null,null,null,null,null,{"$f":"IFERROR(VLOOKUP(#REF!,القائمة!$D$2:$E$6,2,0),\"\")","v":""},null,"","",null,"",""]
[null,null,null,null,null,null,{"$f":"IFERROR(VLOOKUP(#REF!,القائمة!$D$2:$E$6,2,0),\"\")","v":""},null,"","",null,"",""]
[null,null,null,null,null,null,{"$f":"IFERROR(VLOOKUP(#REF!,القائمة!$D$2:$E$6,2,0),\"\")","v":""},null,"","",null,"",""]
[null,null,null,null,null,null,{"$f":"IFERROR(VLOOKUP(#REF!,القائمة!$D$2:$E$6,2,0),\"\")","v":""},null,"","",null,"",""]
[null,null,null,null,null,null,{"$f":"IFERROR(VLOOKUP(#REF!,القائمة!$D$2:$E$6,2,0),\"\")","v":""},null,"","",null,"",""]
[null,null,null,null,null,null,{"$f":"IFERROR(VLOOKUP(#REF!,القائمة!$D$2:$E$6,2,0),\"\")","v":""},null,"","",null,"",""]
[null,null,null,null,null,null,{"$f":"IFERROR(VLOOKUP(#REF!,القائمة!$D$2:$E$6,2,0),\"\")","v":""},null,"","",null,"",""]
[null,null,null,null,null,null,{"$f":"IFERROR(VLOOKUP(#REF!,القائمة!$D$2:$E$6,2,0),\"\")","v":""},null,"","",null,"",""]
[null,null,null,null,null,null,{"$f":"IFERROR(VLOOKUP(#REF!,القائمة!$D$2:$E$6,2,0),\"\")","v":""},null,"","",null,"",""]
[null,null,null,null,null,null,{"$f":"IFERROR(VLOOKUP(#REF!,القائمة!$D$2:$E$6,2,0),\"\")","v":""},null,"","",null,"",""]
[null,null,null,null,null,null,{"$f":"IFERROR(VLOOKUP(#REF!,القائمة!$D$2:$E$6,2,0),\"\")","v":""},null,"","",null,"",""]
[null,null,null,null,null,null,{"$f":"IFERROR(VLOOKUP(#REF!,القائمة!$D$2:$E$6,2,0),\"\")","v":""},null,"","",null,"",""]
[null,null,null,null,null,null,{"$f":"IFERROR(VLOOKUP(#REF!,القائمة!$D$2:$E$6,2,0),\"\")","v":""},null,"","",null,"",""]
[null,null,null,null,null,null,{"$f":"IFERROR(VLOOKUP(#REF!,القائمة!$D$2:$E$6,2,0),\"\")","v":""},null,"","",null,"",""]
[null,null,null,null,null,null,{"$f":"IFERROR(VLOOKUP(#REF!,القائمة!$D$2:$E$6,2,0),\"\")","v":""},null,"","",null,"",""]
[null,null,null,null,null,null,{"$f":"IFERROR(VLOOKUP(#REF!,القائمة!$D$2:$E$6,2,0),\"\")","v":""},null,"","",null,"",""]
[null,null,null,null,null,null,{"$f":"IFERROR(VLOOKUP(#REF!,القائمة!$D$2:$E$6,2,0),\"\")","v":""},null,"","",null,"",""]
[null,null,null,null,null,null,{"$f":"IFERROR(VLOOKUP(#REF!,القائمة!$D$2:$E$6,2,0),\"\")","v":""},null,"","",null,"",""]
[null,null,null,null,null,null,{"$f":"IFERROR(VLOOKUP(#REF!,القائمة!$D$2:$E$6,2,0),\"\")","v":""},null,"","",null,"",""]
[null,null,null,null,null,null,{"$f":"IFERROR(VLOOKUP(#REF!,القائمة!$D$2:$E$6,2,0),\"\")","v":""},null,"","",null,"",""]
[null,null,null,null,null,null,{"$f":"IFERROR(VLOOKUP(#REF!,القائمة!$D$2:$E$6,2,0),\"\")","v":""},null,"","",null,"",""]
[null,null,null,null,null,null,{"$f":"IFERROR(VLOOKUP(#REF!,القائمة!$D$2:$E$6,2,0),\"\")","v":""},null,"","",null,"",""]
[null,null,null,null,null,null,{"$f":"IFERROR(VLOOKUP(#REF!,القائمة!$D$2:$E$6,2,0),\"\")","v":""},null,"","",null,"",""]
[null,null,null,null,null,null,{"$f":"IFERROR(VLOOKUP(#REF!,القائمة!$D$2:$E$6,2,0),\"\")","v":""},null,"","",null,"",""]
[null,null,null,null,null,null,{"$f":"IFERROR(VLOOKUP(#REF!,القائمة!$D$2:$E$6,2,0),\"\")","v":""},null,"","",null,"",""]
[null,null,null,null,null,null,{"$f":"IFERROR(VLOOKUP(#REF!,القائمة!$D$2:$E$6,2,0),\"\")","v":""},null,"","",null,"",""]
[null,null,null,null,null,null,{"$f":"IFERROR(VLOOKUP(#REF!,القائمة!$D$2:$E$6,2,0),\"\")","v":""},null,"","",null,"",""]
[null,null,null,null,null,null,{"$f":"IFERROR(VLOOKUP(#REF!,القائمة!$D$2:$E$6,2,0),\"\")","v":""},null,"","",null,"",""]
[null,null,null,null,null,null,{"$f":"IFERROR(VLOOKUP(#REF!,القائمة!$D$2:$E$6,2,0),\"\")","v":""},null,"","",null,"",""]
[null,null,null,null,null,null,{"$f":"IFERROR(VLOOKUP(#REF!,القائمة!$D$2:$E$6,2,0),\"\")","v":""},null,"","",null,"",""]
[null,null,null,null,null,null,{"$f":"IFERROR(VLOOKUP(#REF!,القائمة!$D$2:$E$6,2,0),\"\")","v":""},null,"","",null,"",""]
[null,null,null,null,null,null,{"$f":"IFERROR(VLOOKUP(#REF!,القائمة!$D$2:$E$6,2,0),\"\")","v":""},null,"","",null,"",""]
[null,null,null,null,null,null,{"$f":"IFERROR(VLOOKUP(#REF!,القائمة!$D$2:$E$6,2,0),\"\")","v":""},null,"","",null,"",""]
[null,null,null,null,null,null,{"$f":"IFERROR(VLOOKUP(#REF!,القائمة!$D$2:$E$6,2,0),\"\")","v":""},null,"","",null,"",""]
[null,null,null,null,null,null,{"$f":"IFERROR(VLOOKUP(#REF!,القائمة!$D$2:$E$6,2,0),\"\")","v":""},null,"","",null,"",""]
[null,null,null,null,null,null,{"$f":"IFERROR(VLOOKUP(#REF!,القائمة!$D$2:$E$6,2,0),\"\")","v":""},null,"","",null,"",""]
[null,null,null,null,null,null,{"$f":"IFERROR(VLOOKUP(#REF!,القائمة!$D$2:$E$6,2,0),\"\")","v":""},null,{"$f":"IF($H389=\"\",\"\",INDEX(OFFSET(OFFSET(Percent,,5),,7*(MATCH($G389,Work,0)-1)),MATCH($H389,Percent,0),0))","v":""},{"$f":"IF($H389=\"\",\"\",INDEX(OFFSET(OFFSET(Percent,,6),,7*(MATCH($G389,Work,0)-1)),MATCH($H389,Percent,0),0))","v":""},null,"",""]
[null,null,null,null,null,null,{"$f":"IFERROR(VLOOKUP(#REF!,القائمة!$D$2:$E$6,2,0),\"\")","v":""},null,"","",null,{"$f":"IF(+C390=\"\",\"\",+C390)","v":""},{"$f":"IF(+C390=\"\",\"\",+J390)","v":""}]
[null,null,null,null,null,null,{"$f":"IFERROR(VLOOKUP(#REF!,القائمة!$D$2:$E$6,2,0),\"\")","v":""},null,"","",null,"",""]
[null,null,null,null,null,null,{"$f":"IFERROR(VLOOKUP(#REF!,القائمة!$D$2:$E$6,2,0),\"\")","v":""},null,"","",null,"",""]
[null,null,null,null,null,null,{"$f":"IFERROR(VLOOKUP(#REF!,القائمة!$D$2:$E$6,2,0),\"\")","v":""},null,"","",null,"",""]
[null,null,null,null,null,null,{"$f":"IFERROR(VLOOKUP(#REF!,القائمة!$D$2:$E$6,2,0),\"\")","v":""},null,"","",null,"",""]
[null,null,null,null,null,null,{"$f":"IFERROR(VLOOKUP(#REF!,القائمة!$D$2:$E$6,2,0),\"\")","v":""},null,"","",null,"",""]
[null,null,null,null,null,null,{"$f":"IFERROR(VLOOKUP(#REF!,القائمة!$D$2:$E$6,2,0),\"\")","v":""},null,"","",null,"",""]
[null,null,null,null,null,null,{"$f":"IFERROR(VLOOKUP(#REF!,القائمة!$D$2:$E$6,2,0),\"\")","v":""},null,"","",null,"",""]
[null,null,null,null,null,null,{"$f":"IFERROR(VLOOKUP(#REF!,القائمة!$D$2:$E$6,2,0),\"\")","v":""},null,"","",null,"",""]
[null,null,null,null,null,null,{"$f":"IFERROR(VLOOKUP(#REF!,القائمة!$D$2:$E$6,2,0),\"\")","v":""},null,"","",null,"",""]
[null,null,null,null,null,null,{"$f":"IFERROR(VLOOKUP(#REF!,القائمة!$D$2:$E$6,2,0),\"\")","v":""},null,"","",null,"",""]
[null,null,null,null,null,null,{"$f":"IFERROR(VLOOKUP(#REF!,القائمة!$D$2:$E$6,2,0),\"\")","v":""},null,"","",null,"",""]
[null,null,null,null,null,null,{"$f":"IFERROR(VLOOKUP(#REF!,القائمة!$D$2:$E$6,2,0),\"\")","v":""},null,"","",null,"",""]
[null,null,null,null,null,null,{"$f":"IFERROR(VLOOKUP(#REF!,القائمة!$D$2:$E$6,2,0),\"\")","v":""},null,"","",null,"",""]
[null,null,null,null,null,null,{"$f":"IFERROR(VLOOKUP(#REF!,القائمة!$D$2:$E$6,2,0),\"\")","v":""},null,"","",null,"",""]
[null,null,null,null,null,null,{"$f":"IFERROR(VLOOKUP(#REF!,القائمة!$D$2:$E$6,2,0),\"\")","v":""},null,"","",null,"",""]
[null,null,null,null,null,null,{"$f":"IFERROR(VLOOKUP(#REF!,القائمة!$D$2:$E$6,2,0),\"\")","v":""},null,"","",null,"",""]
[null,null,null,null,null,null,{"$f":"IFERROR(VLOOKUP(#REF!,القائمة!$D$2:$E$6,2,0),\"\")","v":""},null,"","",null,"",""]
[null,null,null,null,null,null,{"$f":"IFERROR(VLOOKUP(#REF!,القائمة!$D$2:$E$6,2,0),\"\")","v":""},null,"","",null,"",""]
[null,null,null,null,null,null,{"$f":"IFERROR(VLOOKUP(#REF!,القائمة!$D$2:$E$6,2,0),\"\")","v":""},null,"","",null,"",""]
[null,null,null,null,null,null,{"$f":"IFERROR(VLOOKUP(#REF!,القائمة!$D$2:$E$6,2,0),\"\")","v":""},null,"","",null,"",""]
[null,null,null,null,null,null,{"$f":"IFERROR(VLOOKUP(#REF!,القائمة!$D$2:$E$6,2,0),\"\")","v":""},null,"","",null,"",""]
[null,null,null,null,null,null,{"$f":"IFERROR(VLOOKUP(#REF!,القائمة!$D$2:$E$6,2,0),\"\")","v":""},null,"","",null,"",""]
[null,null,null,null,null,null,{"$f":"IFERROR(VLOOKUP(#REF!,القائمة!$D$2:$E$6,2,0),\"\")","v":""},null,"","",null,"",""]
[null,null,null,null,null,null,{"$f":"IFERROR(VLOOKUP(#REF!,القائمة!$D$2:$E$6,2,0),\"\")","v":""},null,"","",null,"",""]
[null,null,null,null,null,null,{"$f":"IFERROR(VLOOKUP(#REF!,القائمة!$D$2:$E$6,2,0),\"\")","v":""},null,"","",null,"",""]
[null,null,null,null,null,null,{"$f":"IFERROR(VLOOKUP(#REF!,القائمة!$D$2:$E$6,2,0),\"\")","v":""},null,"","",null,"",""]
[null,null,null,null,null,null,{"$f":"IFERROR(VLOOKUP(#REF!,القائمة!$D$2:$E$6,2,0),\"\")","v":""},null,"","",null,"",""]
[null,null,null,null,null,null,{"$f":"IFERROR(VLOOKUP(#REF!,القائمة!$D$2:$E$6,2,0),\"\")","v":""},null,"","",null,"",""]
[null,null,null,null,null,null,{"$f":"IFERROR(VLOOKUP(#REF!,القائمة!$D$2:$E$6,2,0),\"\")","v":""},null,"","",null,"",""]
[null,null,null,null,null,null,{"$f":"IFERROR(VLOOKUP(#REF!,القائمة!$D$2:$E$6,2,0),\"\")","v":""},null,"","",null,"",""]
[null,null,null,null,null,null,{"$f":"IFERROR(VLOOKUP(#REF!,القائمة!$D$2:$E$6,2,0),\"\")","v":""},null,"","",null,"",""]
[null,null,null,null,null,null,{"$f":"IFERROR(VLOOKUP(#REF!,القائمة!$D$2:$E$6,2,0),\"\")","v":""},null,"","",null,"",""]
[null,null,null,null,null,null,{"$f":"IFERROR(VLOOKUP(#REF!,القائمة!$D$2:$E$6,2,0),\"\")","v":""},null,"","",null,"",""]
[null,null,null,null,null,null,{"$f":"IFERROR(VLOOKUP(#REF!,القائمة!$D$2:$E$6,2,0),\"\")","v":""},null,"","",null,"",""]
[null,null,null,null,null,null,{"$f":"IFERROR(VLOOKUP(#REF!,القائمة!$D$2:$E$6,2,0),\"\")","v":""},null,"","",null,"",""]
[null,null,null,null,null,null,{"$f":"IFERROR(VLOOKUP(#REF!,القائمة!$D$2:$E$6,2,0),\"\")","v":""},null,"","",null,"",""]
[null,null,null,null,null,null,{"$f":"IFERROR(VLOOKUP(#REF!,القائمة!$D$2:$E$6,2,0),\"\")","v":""},null,"","",null,"",""]
[null,null,null,null,null,null,{"$f":"IFERROR(VLOOKUP(#REF!,القائمة!$D$2:$E$6,2,0),\"\")","v":""},null,"","",null,"",""]
[null,null,null,null,null,null,{"$f":"IFERROR(VLOOKUP(#REF!,القائمة!$D$2:$E$6,2,0),\"\")","v":""},null,"","",null,"",""]
[null,null,null,null,null,null,{"$f":"IFERROR(VLOOKUP(#REF!,القائمة!$D$2:$E$6,2,0),\"\")","v":""},null,"","",null,"",""]
[null,null,null,null,null,null,{"$f":"IFERROR(VLOOKUP(#REF!,القائمة!$D$2:$E$6,2,0),\"\")","v":""},null,"","",null,"",""]
[null,null,null,null,null,null,{"$f":"IFERROR(VLOOKUP(#REF!,القائمة!$D$2:$E$6,2,0),\"\")","v":""},null,"","",null,"",""]
[null,null,null,null,null,null,{"$f":"IFERROR(VLOOKUP(#REF!,القائمة!$D$2:$E$6,2,0),\"\")","v":""},null,"","",null,"",""]
[null,null,null,null,null,null,{"$f":"IFERROR(VLOOKUP(#REF!,القائمة!$D$2:$E$6,2,0),\"\")","v":""},null,"","",null,"",""]
[null,null,null,null,null,null,{"$f":"IFERROR(VLOOKUP(#REF!,القائمة!$D$2:$E$6,2,0),\"\")","v":""},null,"","",null,"",""]
[null,null,null,null,null,null,{"$f":"IFERROR(VLOOKUP(#REF!,القائمة!$D$2:$E$6,2,0),\"\")","v":""},null,"","",null,"",""]
[null,null,null,null,null,null,{"$f":"IFERROR(VLOOKUP(#REF!,القائمة!$D$2:$E$6,2,0),\"\")","v":""},null,"","",null,"",""]
[null,null,null,null,null,null,{"$f":"IFERROR(VLOOKUP(#REF!,القائمة!$D$2:$E$6,2,0),\"\")","v":""},null,"","",null,"",""]
[null,null,null,null,null,null,{"$f":"IFERROR(VLOOKUP(#REF!,القائمة!$D$2:$E$6,2,0),\"\")","v":""},null,"","",null,"",""]
[null,null,null,null,null,null,{"$f":"IFERROR(VLOOKUP(#REF!,القائمة!$D$2:$E$6,2,0),\"\")","v":""},null,"","",null,"",""]
[null,null,null,null,null,null,{"$f":"IFERROR(VLOOKUP(#REF!,القائمة!$D$2:$E$6,2,0),\"\")","v":""},null,"","",null,"",""]
[null,null,null,null,null,null,{"$f":"IFERROR(VLOOKUP(#REF!,القائمة!$D$2:$E$6,2,0),\"\")","v":""},null,"","",null,"",""]
[null,null,null,null,null,null,{"$f":"IFERROR(VLOOKUP(#REF!,القائمة!$D$2:$E$6,2,0),\"\")","v":""},null,"","",null,"",""]
[null,null,null,null,null,null,{"$f":"IFERROR(VLOOKUP(#REF!,القائمة!$D$2:$E$6,2,0),\"\")","v":""},null,"","",null,"",""]
[null,null,null,null,null,null,{"$f":"IFERROR(VLOOKUP(#REF!,القائمة!$D$2:$E$6,2,0),\"\")","v":""},null,"","",null,"",""]
[null,null,null,null,null,null,{"$f":"IFERROR(VLOOKUP(#REF!,القائمة!$D$2:$E$6,2,0),\"\")","v":""},null,"","",null,"",""]
[null,null,null,null,null,null,{"$f":"IFERROR(VLOOKUP(#REF!,القائمة!$D$2:$E$6,2,0),\"\")","v":""},null,"","",null,"",""]
[null,null,null,null,null,null,{"$f":"IFERROR(VLOOKUP(#REF!,القائمة!$D$2:$E$6,2,0),\"\")","v":""},null,"","",null,"",""]
[null,null,null,null,null,null,{"$f":"IFERROR(VLOOKUP(#REF!,القائمة!$D$2:$E$6,2,0),\"\")","v":""},null,"","",null,"",""]
[null,null,null,null,null,null,{"$f":"IFERROR(VLOOKUP(#REF!,القائمة!$D$2:$E$6,2,0),\"\")","v":""},null,"","",null,"",""]
[null,null,null,null,null,null,{"$f":"IFERROR(VLOOKUP(#REF!,القائمة!$D$2:$E$6,2,0),\"\")","v":""},null,"","",null,"",""]
[null,null,null,null,null,null,{"$f":"IFERROR(VLOOKUP(#REF!,القائمة!$D$2:$E$6,2,0),\"\")","v":""},null,"","",null,"",""]
[null,null,null,null,null,null,{"$f":"IFERROR(VLOOKUP(#REF!,القائمة!$D$2:$E$6,2,0),\"\")","v":""},null,{"$f":"IF($H453=\"\",\"\",INDEX(OFFSET(OFFSET(Percent,,5),,7*(MATCH($G453,Work,0)-1)),MATCH($H453,Percent,0),0))","v":""},{"$f":"IF($H453=\"\",\"\",INDEX(OFFSET(OFFSET(Percent,,6),,7*(MATCH($G453,Work,0)-1)),MATCH($H453,Percent,0),0))","v":""},null,"",""]
[null,null,null,null,null,null,{"$f":"IFERROR(VLOOKUP(#REF!,القائمة!$D$2:$E$6,2,0),\"\")","v":""},null,"","",null,{"$f":"IF(+C454=\"\",\"\",+C454)","v":""},{"$f":"IF(+C454=\"\",\"\",+J454)","v":""}]
[null,null,null,null,null,null,{"$f":"IFERROR(VLOOKUP(#REF!,القائمة!$D$2:$E$6,2,0),\"\")","v":""},null,"","",null,"",""]
[null,null,null,null,null,null,{"$f":"IFERROR(VLOOKUP(#REF!,القائمة!$D$2:$E$6,2,0),\"\")","v":""},null,"","",null,"",""]
[null,null,null,null,null,null,{"$f":"IFERROR(VLOOKUP(#REF!,القائمة!$D$2:$E$6,2,0),\"\")","v":""},null,"","",null,"",""]
[null,null,null,null,null,null,{"$f":"IFERROR(VLOOKUP(#REF!,القائمة!$D$2:$E$6,2,0),\"\")","v":""},null,"","",null,"",""]
[null,null,null,null,null,null,{"$f":"IFERROR(VLOOKUP(#REF!,القائمة!$D$2:$E$6,2,0),\"\")","v":""},null,"","",null,"",""]
[null,null,null,null,null,null,{"$f":"IFERROR(VLOOKUP(#REF!,القائمة!$D$2:$E$6,2,0),\"\")","v":""},null,"","",null,"",""]
[null,null,null,null,null,null,{"$f":"IFERROR(VLOOKUP(#REF!,القائمة!$D$2:$E$6,2,0),\"\")","v":""},null,"","",null,"",""]
[null,null,null,null,null,null,{"$f":"IFERROR(VLOOKUP(#REF!,القائمة!$D$2:$E$6,2,0),\"\")","v":""},null,"","",null,"",""]
[null,null,null,null,null,null,{"$f":"IFERROR(VLOOKUP(#REF!,القائمة!$D$2:$E$6,2,0),\"\")","v":""},null,"","",null,"",""]
[null,null,null,null,null,null,{"$f":"IFERROR(VLOOKUP(#REF!,القائمة!$D$2:$E$6,2,0),\"\")","v":""},null,"","",null,"",""]
[null,null,null,null,null,null,{"$f":"IFERROR(VLOOKUP(#REF!,القائمة!$D$2:$E$6,2,0),\"\")","v":""},null,"","",null,"",""]
[null,null,null,null,null,null,{"$f":"IFERROR(VLOOKUP(#REF!,القائمة!$D$2:$E$6,2,0),\"\")","v":""},null,"","",null,"",""]
[null,null,null,null,null,null,{"$f":"IFERROR(VLOOKUP(#REF!,القائمة!$D$2:$E$6,2,0),\"\")","v":""},null,"","",null,"",""]
[null,null,null,null,null,null,{"$f":"IFERROR(VLOOKUP(#REF!,القائمة!$D$2:$E$6,2,0),\"\")","v":""},null,"","",null,"",""]
[null,null,null,null,null,null,{"$f":"IFERROR(VLOOKUP(#REF!,القائمة!$D$2:$E$6,2,0),\"\")","v":""},null,"","",null,"",""]
[null,null,null,null,null,null,{"$f":"IFERROR(VLOOKUP(#REF!,القائمة!$D$2:$E$6,2,0),\"\")","v":""},null,"","",null,"",""]
[null,null,null,null,null,null,{"$f":"IFERROR(VLOOKUP(#REF!,القائمة!$D$2:$E$6,2,0),\"\")","v":""},null,"","",null,"",""]
[null,null,null,null,null,null,{"$f":"IFERROR(VLOOKUP(#REF!,القائمة!$D$2:$E$6,2,0),\"\")","v":""},null,"","",null,"",""]
[null,null,null,null,null,null,{"$f":"IFERROR(VLOOKUP(#REF!,القائمة!$D$2:$E$6,2,0),\"\")","v":""},null,"","",null,"",""]
[null,null,null,null,null,null,{"$f":"IFERROR(VLOOKUP(#REF!,القائمة!$D$2:$E$6,2,0),\"\")","v":""},null,"","",null,"",""]
[null,null,null,null,null,null,{"$f":"IFERROR(VLOOKUP(#REF!,القائمة!$D$2:$E$6,2,0),\"\")","v":""},null,"","",null,"",""]
[null,null,null,null,null,null,{"$f":"IFERROR(VLOOKUP(#REF!,القائمة!$D$2:$E$6,2,0),\"\")","v":""},null,"","",null,"",""]
[null,null,null,null,null,null,{"$f":"IFERROR(VLOOKUP(#REF!,القائمة!$D$2:$E$6,2,0),\"\")","v":""},null,"","",null,"",""]
[null,null,null,null,null,null,{"$f":"IFERROR(VLOOKUP(#REF!,القائمة!$D$2:$E$6,2,0),\"\")","v":""},null,"","",null,"",""]
[null,null,null,null,null,null,{"$f":"IFERROR(VLOOKUP(#REF!,القائمة!$D$2:$E$6,2,0),\"\")","v":""},null,"","",null,"",""]
[null,null,null,null,null,null,{"$f":"IFERROR(VLOOKUP(#REF!,القائمة!$D$2:$E$6,2,0),\"\")","v":""},null,"","",null,"",""]
[null,null,null,null,null,null,{"$f":"IFERROR(VLOOKUP(#REF!,القائمة!$D$2:$E$6,2,0),\"\")","v":""},null,"","",null,"",""]
[null,null,null,null,null,null,{"$f":"IFERROR(VLOOKUP(#REF!,القائمة!$D$2:$E$6,2,0),\"\")","v":""},null,"","",null,"",""]
[null,null,null,null,null,null,{"$f":"IFERROR(VLOOKUP(#REF!,القائمة!$D$2:$E$6,2,0),\"\")","v":""},null,"","",null,"",""]
[null,null,null,null,null,null,{"$f":"IFERROR(VLOOKUP(#REF!,القائمة!$D$2:$E$6,2,0),\"\")","v":""},null,"","",null,"",""]
[null,null,null,null,null,null,{"$f":"IFERROR(VLOOKUP(#REF!,القائمة!$D$2:$E$6,2,0),\"\")","v":""},null,"","",null,"",""]
[null,null,null,null,null,null,{"$f":"IFERROR(VLOOKUP(#REF!,القائمة!$D$2:$E$6,2,0),\"\")","v":""},null,"","",null,"",""]
[null,null,null,null,null,null,{"$f":"IFERROR(VLOOKUP(#REF!,القائمة!$D$2:$E$6,2,0),\"\")","v":""},null,"","",null,"",""]
[null,null,null,null,null,null,{"$f":"IFERROR(VLOOKUP(#REF!,القائمة!$D$2:$E$6,2,0),\"\")","v":""},null,"","",null,"",""]
[null,null,null,null,null,null,{"$f":"IFERROR(VLOOKUP(#REF!,القائمة!$D$2:$E$6,2,0),\"\")","v":""},null,"","",null,"",""]
[null,null,null,null,null,null,{"$f":"IFERROR(VLOOKUP(#REF!,القائمة!$D$2:$E$6,2,0),\"\")","v":""},null,"","",null,"",""]
[null,null,null,null,null,null,{"$f":"IFERROR(VLOOKUP(#REF!,القائمة!$D$2:$E$6,2,0),\"\")","v":""},null,"","",null,"",""]
[null,null,null,null,null,null,{"$f":"IFERROR(VLOOKUP(#REF!,القائمة!$D$2:$E$6,2,0),\"\")","v":""},null,"","",null,"",""]
[null,null,null,null,null,null,{"$f":"IFERROR(VLOOKUP(#REF!,القائمة!$D$2:$E$6,2,0),\"\")","v":""},null,"","",null,"",""]
[null,null,null,null,null,null,{"$f":"IFERROR(VLOOKUP(#REF!,القائمة!$D$2:$E$6,2,0),\"\")","v":""},null,"","",null,"",""]
[null,null,null,null,null,null,{"$f":"IFERROR(VLOOKUP(#REF!,القائمة!$D$2:$E$6,2,0),\"\")","v":""},null,"","",null,"",""]
[null,null,null,null,null,null,{"$f":"IFERROR(VLOOKUP(#REF!,القائمة!$D$2:$E$6,2,0),\"\")","v":""},null,"","",null,"",""]
[null,null,null,null,null,null,{"$f":"IFERROR(VLOOKUP(#REF!,القائمة!$D$2:$E$6,2,0),\"\")","v":""},null,"","",null,"",""]
[null,null,null,null,null,null,{"$f":"IFERROR(VLOOKUP(#REF!,القائمة!$D$2:$E$6,2,0),\"\")","v":""},null,"","",null,"",""]
[null,null,null,null,null,null,{"$f":"IFERROR(VLOOKUP(#REF!,القائمة!$D$2:$E$6,2,0),\"\")","v":""},null,"","",null,"",""]
[null,null,null,null,null,null,{"$f":"IFERROR(VLOOKUP(#REF!,القائمة!$D$2:$E$6,2,0),\"\")","v":""},null,"","",null,"",""]

{"sheet":"تقرير","index":3,"n_rows":550,"n_cols":17,"rows_kept":550,"cut":false,"hidden":false,"merged":[[1,1,1,4],[5,5,5,9]]}
[]
[null,"تقرير النسب والمبلغ خلال العمليات للمقاولين",null,null,null,null,null,null,null,null,null,{"$f":"IF(+القائمة!G2=\"\",\"\",+القائمة!G2)","v":"خالد مهدي"},{"$f":"IF(+القائمة!H2=\"\",\"\",+القائمة!H2)","v":66900}]
[null,null,null,null,null,null,null,"البيان","التقرير","القائمة",null,{"$f":"IF(+القائمة!G3=\"\",\"\",+القائمة!G3)","v":"إيهاب"},{"$f":"IF(+القائمة!H3=\"\",\"\",+القائمة!H3)","v":0}]
[null,"المقاول","العملية","الكلاستر","الصوبة",null,null,"الاجمالى القيمة",{"$f":"SUM(J10:J102)","v":66900},{"$f":"INDEX(القائمة!$H$2:$H$24,MATCH($B$5,Names,0))","v":66900},null,{"$f":"IF(+القائمة!G4=\"\",\"\",+القائمة!G4)","v":""},{"$f":"IF(+القائمة!H4=\"\",\"\",+القائمة!H4)","v":""}]
[null,"خالد مهدي",null,13,null,null,null,"الاجمالى العمالة",{"$f":"SUM($F$10:$F$500)","v":0},{"$f":"IF(B5<>\"\",I4-J4,\"\")","v":0},null,{"$f":"IF(+القائمة!G5=\"\",\"\",+القائمة!G5)","v":""},{"$f":"IF(+القائمة!H5=\"\",\"\",+القائمة!H5)","v":""}]
[null,null,null,null,"المبلغ",{"$f":"NoToTxt(I4,\"جنيها\",\"قرش\")","v":"فقط ستة وستون ألف وتسعمائة جنيها"},null,null,null,null,null,{"$f":"IF(+القائمة!G6=\"\",\"\",+القائمة!G6)","v":""},{"$f":"IF(+القائمة!H6=\"\",\"\",+القائمة!H6)","v":""},null,null,{"$f":"3.4+2.8+3.88","v":10.079999999999998}]
[null,null,null,null,null,null,null,null,null,null,null,{"$f":"IF(+القائمة!G7=\"\",\"\",+القائمة!G7)","v":""},{"$f":"IF(+القائمة!H7=\"\",\"\",+القائمة!H7)","v":""},null,null,1700]
[null,null,null,null,null,null,null,null,null,null,null,{"$f":"IF(+القائمة!G8=\"\",\"\",+القائمة!G8)","v":""},{"$f":"IF(+القائمة!H8=\"\",\"\",+القائمة!H8)","v":""},null,null,{"$f":"+P6*P7","v":17135.999999999996}]
[null,"التاريخ","المقاول","الكلاستر","الصوبة","عدد العمال","العمل","النسبة","العمل","القيمة المستحقة",null,{"$f":"IF(+القائمة!G9=\"\",\"\",+القائمة!G9)","v":""},{"$f":"IF(+القائمة!H9=\"\",\"\",+القائمة!H9)","v":""}]
[null,"2019-08-28","خالد مهدى",56,null,null,"1حفر وردم 10%0",1,{"$f":"IF(H10=\"\",\"\",INDEX(OFFSET(OFFSET(Percent,,5),,7*(MATCH(G10,Work,0)-1)),MATCH(H10,Percent,0),0))","v":10},{"$f":"IF(I10=\"\",\"\",INDEX(OFFSET(OFFSET(Percent,,6),,7*(MATCH(G10,Work,0)-1)),MATCH(H10,Percent,0),0))","v":4000},null,{"$f":"IF(+القائمة!G10=\"\",\"\",+القائمة!G10)","v":""},{"$f":"IF(+القائمة!H10=\"\",\"\",+القائمة!H10)","v":""}]
[null,"2019-08-28","خالد مهدى",56,null,null,"2بناء ومحارة وعزل40%0",0.75,{"$f":"IF(H11=\"\",\"\",INDEX(OFFSET(OFFSET(Percent,,5),,7*(MATCH($G11,Work,0)-1)),MATCH($H11,Percent,0),0))","v":30},{"$f":"IF(I11=\"\",\"\",INDEX(OFFSET(OFFSET(Percent,,6),,7*(MATCH($G11,Work,0)-1)),MATCH($H11,Percent,0),0))","v":12000},null,{"$f":"IF(+القائمة!G11=\"\",\"\",+القائمة!G11)","v":""},{"$f":"IF(+القائمة!H11=\"\",\"\",+القائمة!H11)","v":""}]
[null,"2019-08-28","خالد مهدى",56,null,null,"3عـــــــــــــــــزل35%0",0.45,15.75,6300,null,{"$f":"IF(+القائمة!G12=\"\",\"\",+القائمة!G12)","v":""},{"$f":"IF(+القائمة!H12=\"\",\"\",+القائمة!H12)","v":""},null,{"$f":"2000+1500","v":3500},{"$f":"SUM(M12,O12)","v":3500}]
[null,"2019-08-28","خالد مهدى",57,null,null,"1حفر وردم 10%0",1,10,4000,null,{"$f":"IF(+القائمة!G13=\"\",\"\",+القائمة!G13)","v":""},{"$f":"IF(+القائمة!H13=\"\",\"\",+القائمة!H13)","v":""}]
[null,"2019-08-28","خالد مهدى",57,null,null,"2بناء ومحارة وعزل40%0",0.75,30,12000,null,{"$f":"IF(+القائمة!G14=\"\",\"\",+القائمة!G14)","v":""},{"$f":"IF(+القائمة!H14=\"\",\"\",+القائمة!H14)","v":""}]
[null,"2019-08-28","خالد مهدى",57,null,null,"3عـــــــــــــــــزل35%0",0.45,15.75,6300,null,{"$f":"IF(+القائمة!G15=\"\",\"\",+القائمة!G15)","v":""},{"$f":"IF(+القائمة!H15=\"\",\"\",+القائمة!H15)","v":""}]
[null,"2019-08-28","خالد مهدى",58,null,null,"1حفر وردم 10%0",1,10,4000,null,{"$f":"IF(+القائمة!G16=\"\",\"\",+القائمة!G16)","v":""},{"$f":"IF(+القائمة!H16=\"\",\"\",+القائمة!H16)","v":""}]
[null,"2019-08-28","خالد مهدى",58,null,null,"2بناء ومحارة وعزل40%0",0.75,30,12000,null,{"$f":"IF(+القائمة!G17=\"\",\"\",+القائمة!G17)","v":""},{"$f":"IF(+القائمة!H17=\"\",\"\",+القائمة!H17)","v":""}]
[null,"2019-08-28","خالد مهدى",58,null,null,"3عـــــــــــــــــزل35%0",0.45,15.75,6300,null,{"$f":"IF(+القائمة!G18=\"\",\"\",+القائمة!G18)","v":""},{"$f":"IF(+القائمة!H18=\"\",\"\",+القائمة!H18)","v":""}]
[null,null,null,null,null,null,null,null,"","",null,{"$f":"IF(+القائمة!G19=\"\",\"\",+القائمة!G19)","v":""},{"$f":"IF(+القائمة!H19=\"\",\"\",+القائمة!H19)","v":""}]
[null,null,null,null,null,null,null,null,"","",null,{"$f":"IF(+القائمة!G20=\"\",\"\",+القائمة!G20)","v":""},{"$f":"IF(+القائمة!H20=\"\",\"\",+القائمة!H20)","v":""}]
[null,null,null,null,null,null,null,null,"","",null,{"$f":"IF(+القائمة!G21=\"\",\"\",+القائمة!G21)","v":""},{"$f":"IF(+القائمة!H21=\"\",\"\",+القائمة!H21)","v":""},null,{"$f":"14950-6900","v":8050},6900,{"$f":"+O21+P21","v":14950}]
[null,null,null,null,null,null,null,null,"","",null,{"$f":"IF(+القائمة!G22=\"\",\"\",+القائمة!G22)","v":""},{"$f":"IF(+القائمة!H22=\"\",\"\",+القائمة!H22)","v":""}]
[null,null,null,null,null,null,null,null,"","",null,{"$f":"IF(+القائمة!G23=\"\",\"\",+القائمة!G23)","v":""},{"$f":"IF(+القائمة!H23=\"\",\"\",+القائمة!H23)","v":""}]
[null,null,null,null,null,null,null,null,"","",null,{"$f":"IF(+القائمة!G24=\"\",\"\",+القائمة!G24)","v":""},{"$f":"IF(+القائمة!H24=\"\",\"\",+القائمة!H24)","v":""}]
[null,null,null,null,null,null,null,null,"","",null,{"$f":"IF(+القائمة!G25=\"\",\"\",+القائمة!G25)","v":""},{"$f":"IF(+القائمة!H25=\"\",\"\",+القائمة!H25)","v":""}]
[null,null,null,null,null,null,null,null,"","",null,{"$f":"IF(+القائمة!G26=\"\",\"\",+القائمة!G26)","v":""},{"$f":"IF(+القائمة!H26=\"\",\"\",+القائمة!H26)","v":""}]
[null,null,null,null,null,null,null,null,"","",null,{"$f":"IF(+القائمة!G27=\"\",\"\",+القائمة!G27)","v":""},{"$f":"IF(+القائمة!H27=\"\",\"\",+القائمة!H27)","v":""}]
[null,null,null,null,null,null,null,null,"","",null,{"$f":"IF(+القائمة!G28=\"\",\"\",+القائمة!G28)","v":""},{"$f":"IF(+القائمة!H28=\"\",\"\",+القائمة!H28)","v":""}]
[null,null,null,null,null,null,null,null,"","",null,{"$f":"IF(+القائمة!G29=\"\",\"\",+القائمة!G29)","v":""},{"$f":"IF(+القائمة!H29=\"\",\"\",+القائمة!H29)","v":""}]
[null,null,null,null,null,null,null,null,"","",null,{"$f":"IF(+القائمة!G30=\"\",\"\",+القائمة!G30)","v":""},{"$f":"IF(+القائمة!H30=\"\",\"\",+القائمة!H30)","v":""}]
[null,null,null,null,null,null,null,null,"","",null,{"$f":"IF(+القائمة!G31=\"\",\"\",+القائمة!G31)","v":""},{"$f":"IF(+القائمة!H31=\"\",\"\",+القائمة!H31)","v":""}]
[null,null,null,null,null,null,null,null,"","",null,{"$f":"IF(+القائمة!G32=\"\",\"\",+القائمة!G32)","v":""},{"$f":"IF(+القائمة!H32=\"\",\"\",+القائمة!H32)","v":""}]
[null,null,null,null,null,null,null,null,"","",null,{"$f":"IF(+القائمة!G33=\"\",\"\",+القائمة!G33)","v":""},{"$f":"IF(+القائمة!H33=\"\",\"\",+القائمة!H33)","v":""}]
[null,null,null,null,null,null,null,null,"","",null,{"$f":"IF(+القائمة!G34=\"\",\"\",+القائمة!G34)","v":""},{"$f":"IF(+القائمة!H34=\"\",\"\",+القائمة!H34)","v":""}]
[null,null,null,null,null,null,null,null,"","",null,{"$f":"IF(+القائمة!G35=\"\",\"\",+القائمة!G35)","v":""},{"$f":"IF(+القائمة!H35=\"\",\"\",+القائمة!H35)","v":""}]
[null,null,null,null,null,null,null,null,"","",null,{"$f":"IF(+القائمة!G36=\"\",\"\",+القائمة!G36)","v":""},{"$f":"IF(+القائمة!H36=\"\",\"\",+القائمة!H36)","v":""}]
[null,null,null,null,null,null,null,null,"","",null,{"$f":"IF(+القائمة!G37=\"\",\"\",+القائمة!G37)","v":""},{"$f":"IF(+القائمة!H37=\"\",\"\",+القائمة!H37)","v":""}]
[null,null,null,null,null,null,null,null,"","",null,{"$f":"IF(+القائمة!G38=\"\",\"\",+القائمة!G38)","v":""},{"$f":"IF(+القائمة!H38=\"\",\"\",+القائمة!H38)","v":""}]
[null,null,null,null,null,null,null,null,"","",null,{"$f":"IF(+القائمة!G39=\"\",\"\",+القائمة!G39)","v":""},{"$f":"IF(+القائمة!H39=\"\",\"\",+القائمة!H39)","v":""}]
[null,null,null,null,null,null,null,null,"","",null,{"$f":"IF(+القائمة!G40=\"\",\"\",+القائمة!G40)","v":""},{"$f":"IF(+القائمة!H40=\"\",\"\",+القائمة!H40)","v":""}]
[null,null,null,null,null,null,null,null,"","",null,{"$f":"IF(+القائمة!G41=\"\",\"\",+القائمة!G41)","v":""},{"$f":"IF(+القائمة!H41=\"\",\"\",+القائمة!H41)","v":""}]
[null,null,null,null,null,null,null,null,"","",null,{"$f":"IF(+القائمة!G42=\"\",\"\",+القائمة!G42)","v":""},{"$f":"IF(+القائمة!H42=\"\",\"\",+القائمة!H42)","v":""}]
[null,null,null,null,null,null,null,null,"","",null,{"$f":"IF(+القائمة!G43=\"\",\"\",+القائمة!G43)","v":""},{"$f":"IF(+القائمة!H43=\"\",\"\",+القائمة!H43)","v":""}]
[null,null,null,null,null,null,null,null,"","",null,{"$f":"IF(+القائمة!G44=\"\",\"\",+القائمة!G44)","v":""},{"$f":"IF(+القائمة!H44=\"\",\"\",+القائمة!H44)","v":""}]
[null,null,null,null,null,null,null,null,"","",null,{"$f":"IF(+القائمة!G45=\"\",\"\",+القائمة!G45)","v":""},{"$f":"IF(+القائمة!H45=\"\",\"\",+القائمة!H45)","v":""}]
[null,null,null,null,null,null,null,null,"","",null,{"$f":"IF(+القائمة!G46=\"\",\"\",+القائمة!G46)","v":""},{"$f":"IF(+القائمة!H46=\"\",\"\",+القائمة!H46)","v":""}]
[null,null,null,null,null,null,null,null,"","",null,{"$f":"IF(+القائمة!G47=\"\",\"\",+القائمة!G47)","v":""},{"$f":"IF(+القائمة!H47=\"\",\"\",+القائمة!H47)","v":""}]
[null,null,null,null,null,null,null,null,"","",null,{"$f":"IF(+القائمة!G48=\"\",\"\",+القائمة!G48)","v":""},{"$f":"IF(+القائمة!H48=\"\",\"\",+القائمة!H48)","v":""}]
[null,null,null,null,null,null,null,null,"","",null,{"$f":"IF(+القائمة!G49=\"\",\"\",+القائمة!G49)","v":""},{"$f":"IF(+القائمة!H49=\"\",\"\",+القائمة!H49)","v":""}]
[null,null,null,null,null,null,null,null,"","",null,{"$f":"IF(+القائمة!G50=\"\",\"\",+القائمة!G50)","v":""},{"$f":"IF(+القائمة!H50=\"\",\"\",+القائمة!H50)","v":""}]
[null,null,null,null,null,null,null,null,"","",null,{"$f":"IF(+القائمة!G51=\"\",\"\",+القائمة!G51)","v":""},{"$f":"IF(+القائمة!H51=\"\",\"\",+القائمة!H51)","v":""}]
[null,null,null,null,null,null,null,null,"","",null,{"$f":"IF(+القائمة!G52=\"\",\"\",+القائمة!G52)","v":""},{"$f":"IF(+القائمة!H52=\"\",\"\",+القائمة!H52)","v":""}]
[null,null,null,null,null,null,null,null,"","",null,{"$f":"IF(+القائمة!G53=\"\",\"\",+القائمة!G53)","v":""},{"$f":"IF(+القائمة!H53=\"\",\"\",+القائمة!H53)","v":""}]
[null,null,null,null,null,null,null,null,"","",null,{"$f":"IF(+القائمة!G54=\"\",\"\",+القائمة!G54)","v":""},{"$f":"IF(+القائمة!H54=\"\",\"\",+القائمة!H54)","v":""}]
[null,null,null,null,null,null,null,null,"","",null,{"$f":"IF(+القائمة!G55=\"\",\"\",+القائمة!G55)","v":""},{"$f":"IF(+القائمة!H55=\"\",\"\",+القائمة!H55)","v":""}]
[null,null,null,null,null,null,null,null,"","",null,{"$f":"IF(+القائمة!G56=\"\",\"\",+القائمة!G56)","v":""},{"$f":"IF(+القائمة!H56=\"\",\"\",+القائمة!H56)","v":""}]
[null,null,null,null,null,null,null,null,"","",null,{"$f":"IF(+القائمة!G57=\"\",\"\",+القائمة!G57)","v":""},{"$f":"IF(+القائمة!H57=\"\",\"\",+القائمة!H57)","v":""}]
[null,null,null,null,null,null,null,null,"","",null,{"$f":"IF(+القائمة!G58=\"\",\"\",+القائمة!G58)","v":""},{"$f":"IF(+القائمة!H58=\"\",\"\",+القائمة!H58)","v":""}]
[null,null,null,null,null,null,null,null,"","",null,{"$f":"IF(+القائمة!G59=\"\",\"\",+القائمة!G59)","v":""},{"$f":"IF(+القائمة!H59=\"\",\"\",+القائمة!H59)","v":""}]
[null,null,null,null,null,null,null,null,"","",null,{"$f":"IF(+القائمة!G60=\"\",\"\",+القائمة!G60)","v":""},{"$f":"IF(+القائمة!H60=\"\",\"\",+القائمة!H60)","v":""}]
[null,null,null,null,null,null,null,null,"","",null,{"$f":"IF(+القائمة!G61=\"\",\"\",+القائمة!G61)","v":""},{"$f":"IF(+القائمة!H61=\"\",\"\",+القائمة!H61)","v":""}]
[null,null,null,null,null,null,null,null,"","",null,{"$f":"IF(+القائمة!G62=\"\",\"\",+القائمة!G62)","v":""},{"$f":"IF(+القائمة!H62=\"\",\"\",+القائمة!H62)","v":""}]
[null,null,null,null,null,null,null,null,"","",null,{"$f":"IF(+القائمة!G63=\"\",\"\",+القائمة!G63)","v":""},{"$f":"IF(+القائمة!H63=\"\",\"\",+القائمة!H63)","v":""}]
[null,null,null,null,null,null,null,null,"","",null,{"$f":"IF(+القائمة!G64=\"\",\"\",+القائمة!G64)","v":""},{"$f":"IF(+القائمة!H64=\"\",\"\",+القائمة!H64)","v":""}]
[null,null,null,null,null,null,null,null,"","",null,{"$f":"IF(+القائمة!G65=\"\",\"\",+القائمة!G65)","v":""},{"$f":"IF(+القائمة!H65=\"\",\"\",+القائمة!H65)","v":""}]
[null,null,null,null,null,null,null,null,"","",null,{"$f":"IF(+القائمة!G66=\"\",\"\",+القائمة!G66)","v":""},{"$f":"IF(+القائمة!H66=\"\",\"\",+القائمة!H66)","v":""}]
[null,null,null,null,null,null,null,null,"","",null,{"$f":"IF(+القائمة!G67=\"\",\"\",+القائمة!G67)","v":""},{"$f":"IF(+القائمة!H67=\"\",\"\",+القائمة!H67)","v":""}]
[null,null,null,null,null,null,null,null,"","",null,{"$f":"IF(+القائمة!G68=\"\",\"\",+القائمة!G68)","v":""},{"$f":"IF(+القائمة!H68=\"\",\"\",+القائمة!H68)","v":""}]
[null,null,null,null,null,null,null,null,"","",null,{"$f":"IF(+القائمة!G69=\"\",\"\",+القائمة!G69)","v":""},{"$f":"IF(+القائمة!H69=\"\",\"\",+القائمة!H69)","v":""}]
[null,null,null,null,null,null,null,null,"","",null,{"$f":"IF(+القائمة!G70=\"\",\"\",+القائمة!G70)","v":""},{"$f":"IF(+القائمة!H70=\"\",\"\",+القائمة!H70)","v":""}]
[null,null,null,null,null,null,null,null,"","",null,{"$f":"IF(+القائمة!G71=\"\",\"\",+القائمة!G71)","v":""},{"$f":"IF(+القائمة!H71=\"\",\"\",+القائمة!H71)","v":""}]
[null,null,null,null,null,null,null,null,"","",null,{"$f":"IF(+القائمة!G72=\"\",\"\",+القائمة!G72)","v":""},{"$f":"IF(+القائمة!H72=\"\",\"\",+القائمة!H72)","v":""}]
[null,null,null,null,null,null,null,null,"","",null,{"$f":"IF(+القائمة!G73=\"\",\"\",+القائمة!G73)","v":""},{"$f":"IF(+القائمة!H73=\"\",\"\",+القائمة!H73)","v":""}]
[null,null,null,null,null,null,null,null,"","",null,{"$f":"IF(+القائمة!G74=\"\",\"\",+القائمة!G74)","v":""},{"$f":"IF(+القائمة!H74=\"\",\"\",+القائمة!H74)","v":""}]
[null,null,null,null,null,null,null,null,{"$f":"IF(H75=\"\",\"\",INDEX(OFFSET(OFFSET(Percent,,5),,7*(MATCH($G75,Work,0)-1)),MATCH($H75,Percent,0),0))","v":""},{"$f":"IF(I75=\"\",\"\",INDEX(OFFSET(OFFSET(Percent,,6),,7*(MATCH($G75,Work,0)-1)),MATCH($H75,Percent,0),0))","v":""},null,{"$f":"IF(+القائمة!G75=\"\",\"\",+القائمة!G75)","v":""},{"$f":"IF(+القائمة!H75=\"\",\"\",+القائمة!H75)","v":""}]
[null,null,null,null,null,null,null,null,"","",null,{"$f":"IF(+القائمة!G76=\"\",\"\",+القائمة!G76)","v":""},{"$f":"IF(+القائمة!H76=\"\",\"\",+القائمة!H76)","v":""}]
[null,null,null,null,null,null,null,null,"","",null,{"$f":"IF(+القائمة!G77=\"\",\"\",+القائمة!G77)","v":""},{"$f":"IF(+القائمة!H77=\"\",\"\",+القائمة!H77)","v":""}]
[null,null,null,null,null,null,null,null,"","",null,{"$f":"IF(+القائمة!G78=\"\",\"\",+القائمة!G78)","v":""},{"$f":"IF(+القائمة!H78=\"\",\"\",+القائمة!H78)","v":""}]
[null,null,null,null,null,null,null,null,"","",null,{"$f":"IF(+القائمة!G79=\"\",\"\",+القائمة!G79)","v":""},{"$f":"IF(+القائمة!H79=\"\",\"\",+القائمة!H79)","v":""}]
[null,null,null,null,null,null,null,null,"","",null,{"$f":"IF(+القائمة!G80=\"\",\"\",+القائمة!G80)","v":""},{"$f":"IF(+القائمة!H80=\"\",\"\",+القائمة!H80)","v":""}]
[null,null,null,null,null,null,null,null,"","",null,{"$f":"IF(+القائمة!G81=\"\",\"\",+القائمة!G81)","v":""},{"$f":"IF(+القائمة!H81=\"\",\"\",+القائمة!H81)","v":""}]
[null,null,null,null,null,null,null,null,"","",null,{"$f":"IF(+القائمة!G82=\"\",\"\",+القائمة!G82)","v":""},{"$f":"IF(+القائمة!H82=\"\",\"\",+القائمة!H82)","v":""}]
[null,null,null,null,null,null,null,null,"","",null,{"$f":"IF(+القائمة!G83=\"\",\"\",+القائمة!G83)","v":""},{"$f":"IF(+القائمة!H83=\"\",\"\",+القائمة!H83)","v":""}]
[null,null,null,null,null,null,null,null,"","",null,{"$f":"IF(+القائمة!G84=\"\",\"\",+القائمة!G84)","v":""},{"$f":"IF(+القائمة!H84=\"\",\"\",+القائمة!H84)","v":""}]
[null,null,null,null,null,null,null,null,"","",null,{"$f":"IF(+القائمة!G85=\"\",\"\",+القائمة!G85)","v":""},{"$f":"IF(+القائمة!H85=\"\",\"\",+القائمة!H85)","v":""}]
[null,null,null,null,null,null,null,null,"","",null,{"$f":"IF(+القائمة!G86=\"\",\"\",+القائمة!G86)","v":""},{"$f":"IF(+القائمة!H86=\"\",\"\",+القائمة!H86)","v":""}]
[null,null,null,null,null,null,null,null,"","",null,{"$f":"IF(+القائمة!G87=\"\",\"\",+القائمة!G87)","v":""},{"$f":"IF(+القائمة!H87=\"\",\"\",+القائمة!H87)","v":""}]
[null,null,null,null,null,null,null,null,"","",null,{"$f":"IF(+القائمة!G88=\"\",\"\",+القائمة!G88)","v":""},{"$f":"IF(+القائمة!H88=\"\",\"\",+القائمة!H88)","v":""}]
[null,null,null,null,null,null,null,null,"","",null,{"$f":"IF(+القائمة!G89=\"\",\"\",+القائمة!G89)","v":""},{"$f":"IF(+القائمة!H89=\"\",\"\",+القائمة!H89)","v":""}]
[null,null,null,null,null,null,null,null,"","",null,{"$f":"IF(+القائمة!G90=\"\",\"\",+القائمة!G90)","v":""},{"$f":"IF(+القائمة!H90=\"\",\"\",+القائمة!H90)","v":""}]
[null,null,null,null,null,null,null,null,"","",null,{"$f":"IF(+القائمة!G91=\"\",\"\",+القائمة!G91)","v":""},{"$f":"IF(+القائمة!H91=\"\",\"\",+القائمة!H91)","v":""}]
[null,null,null,null,null,null,null,null,"","",null,{"$f":"IF(+القائمة!G92=\"\",\"\",+القائمة!G92)","v":""},{"$f":"IF(+القائمة!H92=\"\",\"\",+القائمة!H92)","v":""}]
[null,null,null,null,null,null,null,null,"","",null,{"$f":"IF(+القائمة!G93=\"\",\"\",+القائمة!G93)","v":""},{"$f":"IF(+القائمة!H93=\"\",\"\",+القائمة!H93)","v":""}]
[null,null,null,null,null,null,null,null,"","",null,{"$f":"IF(+القائمة!G94=\"\",\"\",+القائمة!G94)","v":""},{"$f":"IF(+القائمة!H94=\"\",\"\",+القائمة!H94)","v":""}]
[null,null,null,null,null,null,null,null,"","",null,{"$f":"IF(+القائمة!G95=\"\",\"\",+القائمة!G95)","v":""},{"$f":"IF(+القائمة!H95=\"\",\"\",+القائمة!H95)","v":""}]
[null,null,null,null,null,null,null,null,"","",null,{"$f":"IF(+القائمة!G96=\"\",\"\",+القائمة!G96)","v":""},{"$f":"IF(+القائمة!H96=\"\",\"\",+القائمة!H96)","v":""}]
[null,null,null,null,null,null,null,null,"","",null,{"$f":"IF(+القائمة!G97=\"\",\"\",+القائمة!G97)","v":""},{"$f":"IF(+القائمة!H97=\"\",\"\",+القائمة!H97)","v":""}]
[null,null,null,null,null,null,null,null,"","",null,{"$f":"IF(+القائمة!G98=\"\",\"\",+القائمة!G98)","v":""},{"$f":"IF(+القائمة!H98=\"\",\"\",+القائمة!H98)","v":""}]
[null,null,null,null,null,null,null,null,"","",null,{"$f":"IF(+القائمة!G99=\"\",\"\",+القائمة!G99)","v":""},{"$f":"IF(+القائمة!H99=\"\",\"\",+القائمة!H99)","v":""}]
[null,null,null,null,null,null,null,null,"","",null,{"$f":"IF(+القائمة!G100=\"\",\"\",+القائمة!G100)","v":""},{"$f":"IF(+القائمة!H100=\"\",\"\",+القائمة!H100)","v":""}]
[null,null,null,null,null,null,null,null,"","",null,{"$f":"IF(+القائمة!G101=\"\",\"\",+القائمة!G101)","v":""},{"$f":"IF(+القائمة!H101=\"\",\"\",+القائمة!H101)","v":""}]
[null,null,null,null,null,null,null,null,"","",null,{"$f":"IF(+القائمة!G102=\"\",\"\",+القائمة!G102)","v":""},{"$f":"IF(+القائمة!H102=\"\",\"\",+القائمة!H102)","v":""}]
[null,null,null,null,null,null,null,null,"",""]
[null,null,null,null,null,null,null,null,"",""]
[null,null,null,null,null,null,null,null,"",""]
[null,null,null,null,null,null,null,null,"",""]
[null,null,null,null,null,null,null,null,"",""]
[null,null,null,null,null,null,null,null,"",""]
[null,null,null,null,null,null,null,null,"",""]
[null,null,null,null,null,null,null,null,"",""]
[null,null,null,null,null,null,null,null,"",""]
[null,null,null,null,null,null,null,null,"",""]
[null,null,null,null,null,null,null,null,"",""]
[null,null,null,null,null,null,null,null,"",""]
[null,null,null,null,null,null,null,null,"",""]
[null,null,null,null,null,null,null,null,"",""]
[null,null,null,null,null,null,null,null,"",""]
[null,null,null,null,null,null,null,null,"",""]
[null,null,null,null,null,null,null,null,"",""]
[null,null,null,null,null,null,null,null,"",""]
[null,null,null,null,null,null,null,null,"",""]
[null,null,null,null,null,null,null,null,"",""]
[null,null,null,null,null,null,null,null,"",""]
[null,null,null,null,null,null,null,null,"",""]
[null,null,null,null,null,null,null,null,"",""]
[null,null,null,null,null,null,null,null,"",""]
[null,null,null,null,null,null,null,null,"",""]
[null,null,null,null,null,null,null,null,"",""]
[null,null,null,null,null,null,null,null,"",""]
[null,null,null,null,null,null,null,null,"",""]
[null,null,null,null,null,null,null,null,"",""]
[null,null,null,null,null,null,null,null,"",""]
[null,null,null,null,null,null,null,null,"",""]
[null,null,null,null,null,null,null,null,"",""]
[null,null,null,null,null,null,null,null,"",""]
[null,null,null,null,null,null,null,null,"",""]
[null,null,null,null,null,null,null,null,"",""]
[null,null,null,null,null,null,null,null,"",""]
[null,null,null,null,null,null,null,null,{"$f":"IF(H139=\"\",\"\",INDEX(OFFSET(OFFSET(Percent,,5),,7*(MATCH($G139,Work,0)-1)),MATCH($H139,Percent,0),0))","v":""},{"$f":"IF(I139=\"\",\"\",INDEX(OFFSET(OFFSET(Percent,,6),,7*(MATCH($G139,Work,0)-1)),MATCH($H139,Percent,0),0))","v":""}]
[null,null,null,null,null,null,null,null,"",""]
[null,null,null,null,null,null,null,null,"",""]
[null,null,null,null,null,null,null,null,"",""]
[null,null,null,null,null,null,null,null,"",""]
[null,null,null,null,null,null,null,null,"",""]
[null,null,null,null,null,null,null,null,"",""]
[null,null,null,null,null,null,null,null,"",""]
[null,null,null,null,null,null,null,null,"",""]
[null,null,null,null,null,null,null,null,"",""]
[null,null,null,null,null,null,null,null,"",""]
[null,null,null,null,null,null,null,null,"",""]
[null,null,null,null,null,null,null,null,"",""]
[null,null,null,null,null,null,null,null,"",""]
[null,null,null,null,null,null,null,null,"",""]
[null,null,null,null,null,null,null,null,"",""]
[null,null,null,null,null,null,null,null,"",""]
[null,null,null,null,null,null,null,null,"",""]
[null,null,null,null,null,null,null,null,"",""]
[null,null,null,null,null,null,null,null,"",""]
[null,null,null,null,null,null,null,null,"",""]
[null,null,null,null,null,null,null,null,"",""]
[null,null,null,null,null,null,null,null,"",""]
[null,null,null,null,null,null,null,null,"",""]
[null,null,null,null,null,null,null,null,"",""]
[null,null,null,null,null,null,null,null,"",""]
[null,null,null,null,null,null,null,null,"",""]
[null,null,null,null,null,null,null,null,"",""]
[null,null,null,null,null,null,null,null,"",""]
[null,null,null,null,null,null,null,null,"",""]
[null,null,null,null,null,null,null,null,"",""]
[null,null,null,null,null,null,null,null,"",""]
[null,null,null,null,null,null,null,null,"",""]
[null,null,null,null,null,null,null,null,"",""]
[null,null,null,null,null,null,null,null,"",""]
[null,null,null,null,null,null,null,null,"",""]
[null,null,null,null,null,null,null,null,"",""]
[null,null,null,null,null,null,null,null,"",""]
[null,null,null,null,null,null,null,null,"",""]
[null,null,null,null,null,null,null,null,"",""]
[null,null,null,null,null,null,null,null,"",""]
[null,null,null,null,null,null,null,null,"",""]
[null,null,null,null,null,null,null,null,"",""]
[null,null,null,null,null,null,null,null,"",""]
[null,null,null,null,null,null,null,null,"",""]
[null,null,null,null,null,null,null,null,"",""]
[null,null,null,null,null,null,null,null,"",""]
[null,null,null,null,null,null,null,null,"",""]
[null,null,null,null,null,null,null,null,"",""]
[null,null,null,null,null,null,null,null,"",""]
[null,null,null,null,null,null,null,null,"",""]
[null,null,null,null,null,null,null,null,"",""]
[null,null,null,null,null,null,null,null,"",""]
[null,null,null,null,null,null,null,null,"",""]
[null,null,null,null,null,null,null,null,"",""]
[null,null,null,null,null,null,null,null,"",""]
[null,null,null,null,null,null,null,null,"",""]
[null,null,null,null,null,null,null,null,"",""]
[null,null,null,null,null,null,null,null,"",""]
[null,null,null,null,null,null,null,null,"",""]
[null,null,null,null,null,null,null,null,"",""]
[null,null,null,null,null,null,null,null,"",""]
[null,null,null,null,null,null,null,null,"",""]
[null,null,null,null,null,null,null,null,"",""]
[null,null,null,null,null,null,null,null,{"$f":"IF(H203=\"\",\"\",INDEX(OFFSET(OFFSET(Percent,,5),,7*(MATCH($G203,Work,0)-1)),MATCH($H203,Percent,0),0))","v":""},{"$f":"IF(I203=\"\",\"\",INDEX(OFFSET(OFFSET(Percent,,6),,7*(MATCH($G203,Work,0)-1)),MATCH($H203,Percent,0),0))","v":""}]
[null,null,null,null,null,null,null,null,"",""]
[null,null,null,null,null,null,null,null,"",""]
[null,null,null,null,null,null,null,null,"",""]
[null,null,null,null,null,null,null,null,"",""]
[null,null,null,null,null,null,null,null,"",""]
[null,null,null,null,null,null,null,null,"",""]
[null,null,null,null,null,null,null,null,"",""]
[null,null,null,null,null,null,null,null,"",""]
[null,null,null,null,null,null,null,null,"",""]
[null,null,null,null,null,null,null,null,"",""]
[null,null,null,null,null,null,null,null,"",""]
[null,null,null,null,null,null,null,null,"",""]
[null,null,null,null,null,null,null,null,"",""]
[null,null,null,null,null,null,null,null,"",""]
[null,null,null,null,null,null,null,null,"",""]
[null,null,null,null,null,null,null,null,"",""]
[null,null,null,null,null,null,null,null,"",""]
[null,null,null,null,null,null,null,null,"",""]
[null,null,null,null,null,null,null,null,"",""]
[null,null,null,null,null,null,null,null,"",""]
[null,null,null,null,null,null,null,null,"",""]
[null,null,null,null,null,null,null,null,"",""]
[null,null,null,null,null,null,null,null,"",""]
[null,null,null,null,null,null,null,null,"",""]
[null,null,null,null,null,null,null,null,"",""]
[null,null,null,null,null,null,null,null,"",""]
[null,null,null,null,null,null,null,null,"",""]
[null,null,null,null,null,null,null,null,"",""]
[null,null,null,null,null,null,null,null,"",""]
[null,null,null,null,null,null,null,null,"",""]
[null,null,null,null,null,null,null,null,"",""]
[null,null,null,null,null,null,null,null,"",""]
[null,null,null,null,null,null,null,null,"",""]
[null,null,null,null,null,null,null,null,"",""]
[null,null,null,null,null,null,null,null,"",""]
[null,null,null,null,null,null,null,null,"",""]
[null,null,null,null,null,null,null,null,"",""]
[null,null,null,null,null,null,null,null,"",""]
[null,null,null,null,null,null,null,null,"",""]
[null,null,null,null,null,null,null,null,"",""]
[null,null,null,null,null,null,null,null,"",""]
[null,null,null,null,null,null,null,null,"",""]
[null,null,null,null,null,null,null,null,"",""]
[null,null,null,null,null,null,null,null,"",""]
[null,null,null,null,null,null,null,null,"",""]
[null,null,null,null,null,null,null,null,"",""]
[null,null,null,null,null,null,null,null,"",""]
[null,null,null,null,null,null,null,null,"",""]
[null,null,null,null,null,null,null,null,"",""]
[null,null,null,null,null,null,null,null,"",""]
[null,null,null,null,null,null,null,null,"",""]
[null,null,null,null,null,null,null,null,"",""]
[null,null,null,null,null,null,null,null,"",""]
[null,null,null,null,null,null,null,null,"",""]
[null,null,null,null,null,null,null,null,"",""]
[null,null,null,null,null,null,null,null,"",""]
[null,null,null,null,null,null,null,null,"",""]
[null,null,null,null,null,null,null,null,"",""]
[null,null,null,null,null,null,null,null,"",""]
[null,null,null,null,null,null,null,null,"",""]
[null,null,null,null,null,null,null,null,"",""]
[null,null,null,null,null,null,null,null,"",""]
[null,null,null,null,null,null,null,null,"",""]
[null,null,null,null,null,null,null,null,{"$f":"IF(H267=\"\",\"\",INDEX(OFFSET(OFFSET(Percent,,5),,7*(MATCH($G267,Work,0)-1)),MATCH($H267,Percent,0),0))","v":""},{"$f":"IF(I267=\"\",\"\",INDEX(OFFSET(OFFSET(Percent,,6),,7*(MATCH($G267,Work,0)-1)),MATCH($H267,Percent,0),0))","v":""}]
[null,null,null,null,null,null,null,null,"",""]
[null,null,null,null,null,null,null,null,"",""]
[null,null,null,null,null,null,null,null,"",""]
[null,null,null,null,null,null,null,null,"",""]
[null,null,null,null,null,null,null,null,"",""]
[null,null,null,null,null,null,null,null,"",""]
[null,null,null,null,null,null,null,null,"",""]
[null,null,null,null,null,null,null,null,"",""]
[null,null,null,null,null,null,null,null,"",""]
[null,null,null,null,null,null,null,null,"",""]
[null,null,null,null,null,null,null,null,"",""]
[null,null,null,null,null,null,null,null,"",""]
[null,null,null,null,null,null,null,null,"",""]
[null,null,null,null,null,null,null,null,"",""]
[null,null,null,null,null,null,null,null,"",""]
[null,null,null,null,null,null,null,null,"",""]
[null,null,null,null,null,null,null,null,"",""]
[null,null,null,null,null,null,null,null,"",""]
[null,null,null,null,null,null,null,null,"",""]
[null,null,null,null,null,null,null,null,"",""]
[null,null,null,null,null,null,null,null,"",""]
[null,null,null,null,null,null,null,null,"",""]
[null,null,null,null,null,null,null,null,"",""]
[null,null,null,null,null,null,null,null,"",""]
[null,null,null,null,null,null,null,null,"",""]
[null,null,null,null,null,null,null,null,"",""]
[null,null,null,null,null,null,null,null,"",""]
[null,null,null,null,null,null,null,null,"",""]
[null,null,null,null,null,null,null,null,"",""]
[null,null,null,null,null,null,null,null,"",""]
[null,null,null,null,null,null,null,null,"",""]
[null,null,null,null,null,null,null,null,"",""]
[null,null,null,null,null,null,null,null,"",""]
[null,null,null,null,null,null,null,null,"",""]
[null,null,null,null,null,null,null,null,"",""]
[null,null,null,null,null,null,null,null,"",""]
[null,null,null,null,null,null,null,null,"",""]
[null,null,null,null,null,null,null,null,"",""]
[null,null,null,null,null,null,null,null,"",""]
[null,null,null,null,null,null,null,null,"",""]
[null,null,null,null,null,null,null,null,"",""]
[null,null,null,null,null,null,null,null,"",""]
[null,null,null,null,null,null,null,null,"",""]
[null,null,null,null,null,null,null,null,"",""]
[null,null,null,null,null,null,null,null,"",""]
[null,null,null,null,null,null,null,null,"",""]
[null,null,null,null,null,null,null,null,"",""]
[null,null,null,null,null,null,null,null,"",""]
[null,null,null,null,null,null,null,null,"",""]
[null,null,null,null,null,null,null,null,"",""]
[null,null,null,null,null,null,null,null,"",""]
[null,null,null,null,null,null,null,null,"",""]
[null,null,null,null,null,null,null,null,"",""]
[null,null,null,null,null,null,null,null,"",""]
[null,null,null,null,null,null,null,null,"",""]
[null,null,null,null,null,null,null,null,"",""]
[null,null,null,null,null,null,null,null,"",""]
[null,null,null,null,null,null,null,null,"",""]
[null,null,null,null,null,null,null,null,"",""]
[null,null,null,null,null,null,null,null,"",""]
[null,null,null,null,null,null,null,null,"",""]
[null,null,null,null,null,null,null,null,"",""]
[null,null,null,null,null,null,null,null,"",""]
[null,null,null,null,null,null,null,null,{"$f":"IF(H331=\"\",\"\",INDEX(OFFSET(OFFSET(Percent,,5),,7*(MATCH($G331,Work,0)-1)),MATCH($H331,Percent,0),0))","v":""},{"$f":"IF(I331=\"\",\"\",INDEX(OFFSET(OFFSET(Percent,,6),,7*(MATCH($G331,Work,0)-1)),MATCH($H331,Percent,0),0))","v":""}]
[null,null,null,null,null,null,null,null,"",""]
[null,null,null,null,null,null,null,null,"",""]
[null,null,null,null,null,null,null,null,"",""]
[null,null,null,null,null,null,null,null,"",""]
[null,null,null,null,null,null,null,null,"",""]
[null,null,null,null,null,null,null,null,"",""]
[null,null,null,null,null,null,null,null,"",""]
[null,null,null,null,null,null,null,null,"",""]
[null,null,null,null,null,null,null,null,"",""]
[null,null,null,null,null,null,null,null,"",""]
[null,null,null,null,null,null,null,null,"",""]
[null,null,null,null,null,null,null,null,"",""]
[null,null,null,null,null,null,null,null,"",""]
[null,null,null,null,null,null,null,null,"",""]
[null,null,null,null,null,null,null,null,"",""]
[null,null,null,null,null,null,null,null,"",""]
[null,null,null,null,null,null,null,null,"",""]
[null,null,null,null,null,null,null,null,"",""]
[null,null,null,null,null,null,null,null,"",""]
[null,null,null,null,null,null,null,null,"",""]
[null,null,null,null,null,null,null,null,"",""]
[null,null,null,null,null,null,null,null,"",""]
[null,null,null,null,null,null,null,null,"",""]
[null,null,null,null,null,null,null,null,"",""]
[null,null,null,null,null,null,null,null,"",""]
[null,null,null,null,null,null,null,null,"",""]
[null,null,null,null,null,null,null,null,"",""]
[null,null,null,null,null,null,null,null,"",""]
[null,null,null,null,null,null,null,null,"",""]
[null,null,null,null,null,null,null,null,"",""]
[null,null,null,null,null,null,null,null,"",""]
[null,null,null,null,null,null,null,null,"",""]
[null,null,null,null,null,null,null,null,"",""]
[null,null,null,null,null,null,null,null,"",""]
[null,null,null,null,null,null,null,null,"",""]
[null,null,null,null,null,null,null,null,"",""]
[null,null,null,null,null,null,null,null,"",""]
[null,null,null,null,null,null,null,null,"",""]
[null,null,null,null,null,null,null,null,"",""]
[null,null,null,null,null,null,null,null,"",""]
[null,null,null,null,null,null,null,null,"",""]
[null,null,null,null,null,null,null,null,"",""]
[null,null,null,null,null,null,null,null,"",""]
[null,null,null,null,null,null,null,null,"",""]
[null,null,null,null,null,null,null,null,"",""]
[null,null,null,null,null,null,null,null,"",""]
[null,null,null,null,null,null,null,null,"",""]
[null,null,null,null,null,null,null,null,"",""]
[null,null,null,null,null,null,null,null,"",""]
[null,null,null,null,null,null,null,null,"",""]
[null,null,null,null,null,null,null,null,"",""]
[null,null,null,null,null,null,null,null,"",""]
[null,null,null,null,null,null,null,null,"",""]
[null,null,null,null,null,null,null,null,"",""]
[null,null,null,null,null,null,null,null,"",""]
[null,null,null,null,null,null,null,null,"",""]
[null,null,null,null,null,null,null,null,"",""]
[null,null,null,null,null,null,null,null,"",""]
[null,null,null,null,null,null,null,null,"",""]
[null,null,null,null,null,null,null,null,"",""]
[null,null,null,null,null,null,null,null,"",""]
[null,null,null,null,null,null,null,null,"",""]
[null,null,null,null,null,null,null,null,"",""]
[null,null,null,null,null,null,null,null,{"$f":"IF(H395=\"\",\"\",INDEX(OFFSET(OFFSET(Percent,,5),,7*(MATCH($G395,Work,0)-1)),MATCH($H395,Percent,0),0))","v":""},{"$f":"IF(I395=\"\",\"\",INDEX(OFFSET(OFFSET(Percent,,6),,7*(MATCH($G395,Work,0)-1)),MATCH($H395,Percent,0),0))","v":""}]
[null,null,null,null,null,null,null,null,"",""]
[null,null,null,null,null,null,null,null,"",""]
[null,null,null,null,null,null,null,null,"",""]
[null,null,null,null,null,null,null,null,"",""]
[null,null,null,null,null,null,null,null,"",""]
[null,null,null,null,null,null,null,null,"",""]
[null,null,null,null,null,null,null,null,"",""]
[null,null,null,null,null,null,null,null,"",""]
[null,null,null,null,null,null,null,null,"",""]
[null,null,null,null,null,null,null,null,"",""]
[null,null,null,null,null,null,null,null,"",""]
[null,null,null,null,null,null,null,null,"",""]
[null,null,null,null,null,null,null,null,"",""]
[null,null,null,null,null,null,null,null,"",""]
[null,null,null,null,null,null,null,null,"",""]
[null,null,null,null,null,null,null,null,"",""]
[null,null,null,null,null,null,null,null,"",""]
[null,null,null,null,null,null,null,null,"",""]
[null,null,null,null,null,null,null,null,"",""]
[null,null,null,null,null,null,null,null,"",""]
[null,null,null,null,null,null,null,null,"",""]
[null,null,null,null,null,null,null,null,"",""]
[null,null,null,null,null,null,null,null,"",""]
[null,null,null,null,null,null,null,null,"",""]
[null,null,null,null,null,null,null,null,"",""]
[null,null,null,null,null,null,null,null,"",""]
[null,null,null,null,null,null,null,null,"",""]
[null,null,null,null,null,null,null,null,"",""]
[null,null,null,null,null,null,null,null,"",""]
[null,null,null,null,null,null,null,null,"",""]
[null,null,null,null,null,null,null,null,"",""]
[null,null,null,null,null,null,null,null,"",""]
[null,null,null,null,null,null,null,null,"",""]
[null,null,null,null,null,null,null,null,"",""]
[null,null,null,null,null,null,null,null,"",""]
[null,null,null,null,null,null,null,null,"",""]
[null,null,null,null,null,null,null,null,"",""]
[null,null,null,null,null,null,null,null,"",""]
[null,null,null,null,null,null,null,null,"",""]
[null,null,null,null,null,null,null,null,"",""]
[null,null,null,null,null,null,null,null,"",""]
[null,null,null,null,null,null,null,null,"",""]
[null,null,null,null,null,null,null,null,"",""]
[null,null,null,null,null,null,null,null,"",""]
[null,null,null,null,null,null,null,null,"",""]
[null,null,null,null,null,null,null,null,"",""]
[null,null,null,null,null,null,null,null,"",""]
[null,null,null,null,null,null,null,null,"",""]
[null,null,null,null,null,null,null,null,"",""]
[null,null,null,null,null,null,null,null,"",""]
[null,null,null,null,null,null,null,null,"",""]
[null,null,null,null,null,null,null,null,"",""]
[null,null,null,null,null,null,null,null,"",""]
[null,null,null,null,null,null,null,null,"",""]
[null,null,null,null,null,null,null,null,"",""]
[null,null,null,null,null,null,null,null,"",""]
[null,null,null,null,null,null,null,null,"",""]
[null,null,null,null,null,null,null,null,"",""]
[null,null,null,null,null,null,null,null,"",""]
[null,null,null,null,null,null,null,null,"",""]
[null,null,null,null,null,null,null,null,"",""]
[null,null,null,null,null,null,null,null,"",""]
[null,null,null,null,null,null,null,null,"",""]
[null,null,null,null,null,null,null,null,{"$f":"IF(H459=\"\",\"\",INDEX(OFFSET(OFFSET(Percent,,5),,7*(MATCH($G459,Work,0)-1)),MATCH($H459,Percent,0),0))","v":""},{"$f":"IF(I459=\"\",\"\",INDEX(OFFSET(OFFSET(Percent,,6),,7*(MATCH($G459,Work,0)-1)),MATCH($H459,Percent,0),0))","v":""}]
[null,null,null,null,null,null,null,null,"",""]
[null,null,null,null,null,null,null,null,"",""]
[null,null,null,null,null,null,null,null,"",""]
[null,null,null,null,null,null,null,null,"",""]
[null,null,null,null,null,null,null,null,"",""]
[null,null,null,null,null,null,null,null,"",""]
[null,null,null,null,null,null,null,null,"",""]
[null,null,null,null,null,null,null,null,"",""]
[null,null,null,null,null,null,null,null,"",""]
[null,null,null,null,null,null,null,null,"",""]
[null,null,null,null,null,null,null,null,"",""]
[null,null,null,null,null,null,null,null,"",""]
[null,null,null,null,null,null,null,null,"",""]
[null,null,null,null,null,null,null,null,"",""]
[null,null,null,null,null,null,null,null,"",""]
[null,null,null,null,null,null,null,null,"",""]
[null,null,null,null,null,null,null,null,"",""]
[null,null,null,null,null,null,null,null,"",""]
[null,null,null,null,null,null,null,null,"",""]
[null,null,null,null,null,null,null,null,"",""]
[null,null,null,null,null,null,null,null,"",""]
[null,null,null,null,null,null,null,null,"",""]
[null,null,null,null,null,null,null,null,"",""]
[null,null,null,null,null,null,null,null,"",""]
[null,null,null,null,null,null,null,null,"",""]
[null,null,null,null,null,null,null,null,"",""]
[null,null,null,null,null,null,null,null,"",""]
[null,null,null,null,null,null,null,null,"",""]
[null,null,null,null,null,null,null,null,"",""]
[null,null,null,null,null,null,null,null,"",""]
[null,null,null,null,null,null,null,null,"",""]
[null,null,null,null,null,null,null,null,"",""]
[null,null,null,null,null,null,null,null,"",""]
[null,null,null,null,null,null,null,null,"",""]
[null,null,null,null,null,null,null,null,"",""]
[null,null,null,null,null,null,null,null,"",""]
[null,null,null,null,null,null,null,null,"",""]
[null,null,null,null,null,null,null,null,"",""]
[null,null,null,null,null,null,null,null,"",""]
[null,null,null,null,null,null,null,null,"",""]
[null,null,null,null,null,null,null,null,"",""]
[null,null,null,null,null,null,null,null,"",""]
[null,null,null,null,null,null,null,null,"",""]
[null,null,null,null,null,null,null,null,"",""]
[null,null,null,null,null,null,null,null,"",""]
[null,null,null,null,null,null,null,null,"",""]
[null,null,null,null,null,null,null,null,"",""]
[null,null,null,null,null,null,null,null,"",""]
[null,null,null,null,null,null,null,null,"",""]
[null,null,null,null,null,null,null,null,"",""]
[null,null,null,null,null,null,null,null,"",""]
[null,null,null,null,null,null,null,null,"",""]
[null,null,null,null,null,null,null,null,"",""]
[null,null,null,null,null,null,null,null,"",""]
[null,null,null,null,null,null,null,null,"",""]
[null,null,null,null,null,null,null,null,"",""]
[null,null,null,null,null,null,null,null,"",""]
[null,null,null,null,null,null,null,null,"",""]
[null,null,null,null,null,null,null,null,"",""]
[null,null,null,null,null,null,null,null,"",""]
[null,null,null,null,null,null,null,null,"",""]
[null,null,null,null,null,null,null,null,"",""]
[null,null,null,null,null,null,null,null,"",""]
[null,null,null,null,null,null,null,null,{"$f":"IF(H523=\"\",\"\",INDEX(OFFSET(OFFSET(Percent,,5),,7*(MATCH($G523,Work,0)-1)),MATCH($H523,Percent,0),0))","v":""},{"$f":"IF(I523=\"\",\"\",INDEX(OFFSET(OFFSET(Percent,,6),,7*(MATCH($G523,Work,0)-1)),MATCH($H523,Percent,0),0))","v":""}]
[null,null,null,null,null,null,null,null,"",""]
[null,null,null,null,null,null,null,null,"",""]
[null,null,null,null,null,null,null,null,"",""]
[null,null,null,null,null,null,null,null,"",""]
[null,null,null,null,null,null,null,null,"",""]
[null,null,null,null,null,null,null,null,"",""]
[null,null,null,null,null,null,null,null,"",""]
[null,null,null,null,null,null,null,null,"",""]
[null,null,null,null,null,null,null,null,"",""]
[null,null,null,null,null,null,null,null,"",""]
[null,null,null,null,null,null,null,null,"",""]
[null,null,null,null,null,null,null,null,"",""]
[null,null,null,null,null,null,null,null,"",""]
[null,null,null,null,null,null,null,null,"",""]
[null,null,null,null,null,null,null,null,"",""]
[null,null,null,null,null,null,null,null,"",""]
[null,null,null,null,null,null,null,null,"",""]
[null,null,null,null,null,null,null,null,"",""]
[null,null,null,null,null,null,null,null,"",""]
[null,null,null,null,null,null,null,null,"",""]
[null,null,null,null,null,null,null,null,"",""]
[null,null,null,null,null,null,null,null,"",""]
[null,null,null,null,null,null,null,null,"",""]
[null,null,null,null,null,null,null,null,"",""]
[null,null,null,null,null,null,null,null,"",""]
[null,null,null,null,null,null,null,null,"",""]
[null,null,null,null,null,null,null,null,"",""]